{"text_format":"2","workbook":"xlsx","n_sheets":3,"sheets":["Summary","UFC","KFintech ISC"],"not_rendered":{"charts":0,"images":0,"macros":0,"external_links":1,"defined_names":0,"comments":0,"pivot_tables":1},"unopened":[],"bounds":{"document_bytes":16777216,"sheet_cells":100000,"run_cost":"one","rows_first":2000,"rows_last":500,"rows_between":2000,"halvings":0,"cell_chars":16384,"cell_head_chars":4096},"cells_cut":0,"cells_raw":0,"read":"whole","date_system":"1900"}

{"sheet":"Summary","index":0,"n_rows":5,"n_cols":5,"rows_kept":5,"cut":false,"hidden":false,"merged":[]}
["Count of UFC / BDA / OPA","Labels"]
["UFC Region","UFC","BDA","OPA","Grand Total"]
["Close",0,1,1,2]
["open",167,37,32,236]
["Grand Total",167,38,33,238]

{"sheet":"UFC","index":1,"n_rows":239,"n_cols":16,"rows_kept":239,"cut":false,"hidden":false,"merged":[]}
["Title","UFC / BDA / OPA","Branc Code","Location","Address1","Address2","Address3","City","State","PinCode","Telephone","Fax","IsActive","Modified","Email","Open/Close Status"]
["-","UFC","BN03","Bangalore","No. 28 First Floor ","Centenary Building","M G Road ","Bangalore","Karnataka",560001,"080-25593176","-",true,"-","utibangaloreufc@Kfintech.com","open"]
["-","UFC","JN19","Bangalore-Jayanagar","First Floor No. 76 (Old No. 756) ","10th Main Road 4th Block","Jayanagar","Bangalore","Karnataka",560011,"080-22440837","-",true,"-","utijayanagarufc@Kfintech.com","open"]
["-","UFC","MW17","Bangalore-Malleswaram","No-60 Maruthi Plaza","18Th Cross 8Th Main","Malleswaram","Bangalore","Karnataka",560055,"080-23340672","-",true,"-","utimalleswaramufc@Kfintech.com","open"]
["72","UFC","BG40","Belgaum","R.K. Marg 5Th Cross ","Opp Subhash Market ","Hindwadi ","Belgaum ","Karnataka",590011,"08312 421625","-",true,"-","utibelgaumufc@Kfintech.com","open"]
["73","UFC","BY21","Bellary","Sri Basava Square","2nd Cross Gandhinagar","Gandhi Nagar Bellary ","Bellary","Karnataka",583101,"08392 255634/635","-",true,"-","utibellaryufc@Kfintech.com ","open"]
["83","UFC","DV15","Davangere","#998","Satya Sadana","K B ExtnLawyers Road\n","Davangere","Karnataka",577002,"08192-233566 ","-",true,"-","utidavangereufc@Kfintech.com","open"]
["136","UFC","GB62","Gulbarga","F8 1St Floor Asian Complex","Near City Bus Stand Head Post Office Road","Super Market","Gulbarga","Karnataka",585101,"08472-223666","-",true,"-","utigulbargaufc@Kfintech.com","open"]
["-","UFC","HU50","Hubli","1St Floor Kalburgi Square","Near Desai Cross Tb Road","-","Hubli","Karnataka",580029,"(0836) 2363963/2362061/2363188","-",true,"-","utihubliufc@Kfintech.com","open"]
["-","UFC","MN38","Mangalore","Door NO - 14-3-190","1st Floor Souza Arcade","Near Jyothi Talkies","Mangalore","Karnataka",575001,"0824-2444112","-",true,"-","utimangaloreufc@Kfintech.com","open"]
["104","UFC","MR75","Margao","Shop No: G6 & G7","Jeevottam Sundra 81","Primitive Hospicio Road Bhd. Cine Metropole","Margao","Goa",403601,"0832- 6484613","-",true,"-","utimargoaufc@Kfintech.com","open"]
["-","UFC","MY77","Mysore","UTI Financial Centre","No.11 Kamakshi Hospital Road 8th Cross","Saraswathipuram","Mysore","Karnataka",570009,8212344425,"-",true,"-","utimysoreufc@Kfintech.com","open"]
["-","UFC","GO37","Panjim","Edc House","Mezzanine Floor","Dr A B Marg","Panaji Goa","Goa",403001,"0832 2230064","-",true,"-","utipanajiufc@Kfintech.com","open"]
["-","OPA","SH59","Shimoga","JAYARAMA NILAYA","2ND CORSS","MISSION COMPOUND","Shimoga","Karnataka",577201,"08182 295491","-",true,"-","mfsshimoga@Kfintech.com","Open"]
["Shri. Walter Cyril Pinto   ","BDA","UP04","Udupi","Vishnu Prakash Bldg","Court Road","Feather Communication","Udipi","Karnataka",576101,8202521194,"-",true,"-","mfsudipicr@kfintech.com","open"]
["-","UFC","SH59","Shimogaa","321 Ground Floor","P Square 5th Parallel Road","Durgigudi","Shivamogga","Karnataka",577201,"08182 – 295677/277703","-",true,"-","Kfpl.utishivamogaaufc@Kfintech.com","open"]
["-","UFC","AH01","Ahmedabad","2ND FLOOR IFCI BHAVAN","B/H TANISHQ SHOW ROOM","C G ROAD","Ahmedabad","Gujarat",380006,9081903024,"-",true,"-","utiahmedabadufc@Kfintech.com","open"]
["-","UFC","AD63","Anand","12 A First Floor Chitrangna Complex","First Floor","V V Nagar Road","Anand","Gujarat",388001,9081903039,"-",true,"-","utianandufc@Kfintech.com","open"]
["-","UFC","BR04","Baroda","G 6 & G 7 Land Mark Building","Race Course Road","Transpeck Centre","Baroda","Gujarat",390007,9725013177,"-",true,"-","utibarodaufc@Kfintech.com","open"]
["74","UFC","BU67","Bharuch","103/104/105 Aditya Complex","1St Floor","Near Kashak Circle","Bharuch","Gujarat",392001,"02642 225460","-",true,"-","utibharuchufc@Kfintech.com","open"]
["-","UFC","BV68","Bhavnagar","6/7 Ground Floor  Shree Complex","Crecent Circle","Opp Gandhi Smruti","Bhavnagar","Gujarat",364001,"0278-3201307","-",true,"-","utibhavnagarufc@Kfintech.com","open"]
["-","UFC","BJ01","Bhuj","13 & 14 First Floor","Jubilee Circle Banker'S Colony","Opp All India Radio","Bhuj","Gujarat",370001,9081903026,"-",true,"-","utibhujufc@Kfintech.com","open"]
["-","OPA","GD16","Gandhidham","Shop # 12 Shree Ambica Arcade Plot # 300","Ward 12. Opp. CG High School ","Near HDFC Bank","Gandhidham","Gujarat",370201,9081903027,"-",true,"-","mfsgandhidham@Kfintech.com","Open"]
["87","UFC","GA01","Gandhinagar","Dvij elite First Floor","Plot No 1522 Near Apna Bazar","Sector-6","Gandhi Nagar","Gujarat",382006,"079-23240462","-",true,"-","utigandhinagarufc@Kfintech.com","open"]
["-","UFC","JN12","Jamnagar","102-Madhav Squre","Opp .Avantika complex","Nr. lal bunglow","Jamnagar","Gujarat",361001,9081903043,"-",true,"-","utijamnagarufc@Kfintech.com","open"]
["111","UFC","NV40","Navsari","1/4 Chinmay Arcade","Tower Road","Near Sattapir Road","Navsari","Gujarat",396445,"02637 280528","-",true,"-","utinavsariufc@Kfintech.com","open"]
["-","UFC","RJ61","Rajkot","1st Floor venkatesh plaza Opp. BKC Ground","DR. Radhakrishna road off yagnik road","-","Rajkot","Gujarat",360001,"0281-2440701","-",true,"-","utirajkotufc@Kfintech.com","open"]
["-","UFC","SU19","Surat","B-107/108 Tirupati Plaza","Athwa Gate","Near Collector Office","Surat","Gujarat",395001,"0261 4006099","-",true,"-","utisuratufc@Kfintech.com","open"]
["-","UFC","VP95","Vapi","1st Floor Office No: 102 & 103","SAGA CASA Complex ","Vapi-Daman Main Road Opp. Royal Twin Tower","Chala Vapi","Gujarat",396191,9081903029,"-",true,"-","utivapiufc@Kfintech.com","open"]
["-","BDA","SB85","Sabarkantha (Himmatnagar)","B-1  Deshkanta Memon Complex","Opp Power House","Hajipura","Himatnagar","Gujarat",383001,7818821819,"-",true,"2014-08-13","mfsSabarkanthacr@kfintech.com","open"]
["-","OPA","ND85","Nadiad","311-3rd Floor City Center ","Near Paras Circle","-","Nadiad","Gujarat",387001,"0268-2563245","-",true,"2016-04-01","mfsnadiad@Kfintech.com","Open"]
["92","UFC","JD01","Junagadh","UTI Financial Center","1st Floor Shop No 101102113 & 114 Maerry Gold 2","Above Dominos Pizza Opp Bahaudin colleage rooad","Junagadh","Gujarat",362001,"0285-2672678","-",true,"2019-03-26","Kfpl.utijunagadhufc@Kfintech.com ","open"]
["135","UFC","VD40","Valsad","UTI Financial Center","1st Floor103 Signature Building","Opp Yes Bank Dharampur RoadHalar.","Valsad","Gujarat",396001,"02632-222012","-",true,"-","Kfpl.utivalsadufc@Kfintech.com ","open"]
["-","UFC","MD17","Chennai","Capital Tower Ground Floor","180 Kodambakkam High Road","Nungambakkam","Chennai","Tamil Nadu",600034,"044 28516333 ","-",true,"-","utichennaiufc@Kfintech.com","open"]
["-","UFC","AN13","Chennai-Anna Nagar","W-123","3Rd Avenue","Anna Nagar","Chennai","Tamil Nadu",600040,"044-42615016","-",true,"-","utiannanagarufc@Kfintech.com","open"]
["-","UFC","TN14","Chennai-T Nagar","No/29","North Usman Road","Tnagar","Chennai","Tamil Nadu",600017,"044-42121648","-",true,"-","utitnagarufc@Kfintech.com","open"]
["-","UFC","CL69","Calicut (Kozhikode)","Aydeed Complex","YMCA Cross Road","Kozhikode","Calicut","Kerala",673001,"(0495) 2367284 ","-",true,"-","uticalicutufc@Kfintech.com","open"]
["-","UFC","CO08","Cochin","Ground Floor Palackal Building Chittoor Road ","Iyyattil Junction","Opp Kavitha International Hotel","Ernakulam ","Kerala",682011,"0484 - 2380259","-",true,"-","uticochinufc@Kfintech.com","open"]
["99","UFC","KT75","Kottayam","17/480-FMuringampadam ChambersGround Floor","Cms College Road","Cms College Jn","Kottayam","Kerala",686001,"0481-2560734","-",true,"-","utikottayamufc@Kfintech.com","open"]
["-","OPA","PG35","Palghat","No: 20 & 21 ","Metro Complex H.P.O.Road Palakkad","H.P.O.Road","Palakkad","Kerala",678001,9895968533,"-",true,"-","mfspalghat@Kfintech.com","Close"]
["-","UFC","TU51","Trichur","26/621-622 Kollannur Devassy Bldg","Town Hall Road","Near Paramekavu Temple","Thrissur","Kerala",680020,"0487-2331259",2331496,true,"-","utitrichurufc@Kfintech.com","open"]
["-","UFC","TV52","Trivandrum","T C 15/49 ( 2 )","1st Floor, Saran Chambers","Vellayambalam","Thiruvananthapuram","Kerala",675010,"(0471) 2723674/2721415/2720310","-",true,"-","utitrivandrumufc@Kfintech.com","open"]
["-","OPA","KM12","Kollam","SREE VIGNESWARA BHAVAN","SHASTRI JUNCTION","-","Kollam","Kerala",691001,"474-2747055","-",true,"-","mfskollam@Kfintech.com","Open"]
["-","BDA","AN08","Ankamaly","Parayil Agencies","Ankamaly South P O","Ankamaly","Cochin","Kerala",683573,"0484 - 2452560","-",true,"2014-12-23","mfsangamalycr@kfintech.com","open"]
["-","OPA","KU29","Kannur","2ND FLOOR","GLOBAL VILLAGE","BANK ROAD","Kannur","Kerala",{"$f":"VLOOKUP(Table1[[#This Row],[Location]],'[1]MFS Add.List'!$D$1:$Q$178,14,0)","v":670001},"0497 - 2764190","-",true,"2015-08-03","mfskannur@Kfintech.com","Open"]
["-","OPA","TI76","Tiruvalla","2Nd FloorErinjery Complex","Ramanchira","Opp Axis Bank","Thiruvalla","Kerala",{"$f":"VLOOKUP(Table1[[#This Row],[Location]],'[1]MFS Add.List'!$D$1:$Q$178,14,0)","v":689107},"04862-211209","-",true,"2015-08-14","mfstiruvalla@Kfintech.com","Open"]
["-","BDA","AY35","Alleppy","MJM Building ","Mullakal","Alappuzha","Alleppy","Kerala",688011,"0477 2251110","-",true,"2015-09-01","alleppycr@Kfintech.com","open"]
["-","UFC","CB06","Coimbatore","UTI Financial Centre \"R G Chambers\" First Floor ","1023 Avinashi Road","Coimbatore","Coimbatore","Tamil Nadu",641018,"0422 4393918","-",true,"-","uticoimbatoreufc@Kfintech.com","open"]
["-","OPA","ER70","Erode","Address No 38/1 Ground Floor","Sathy Road,(VCTV Main Road)","Sorna Krishna Complex","Erode","Tamil Nadu",{"$f":"VLOOKUP(Table1[[#This Row],[Location]],'[1]MFS Add.List'!$D$1:$Q$178,14,0)","v":638003},"0424-4021212","-",true,"-","mfserode@Kfintech.com","Open"]
["-","UFC","MR31","Madurai","No. 3 West Marret Street","LIC Building - 1st Floor","Opposit to Railway Station","Madurai","Tamil Nadu",625001,"(0452) 2338186/2333317","-",true,"-","utimaduraiufc@Kfintech.com","open"]
["-","OPA","NK25","Nagerkoil","HNO 45 ","1st Floor","East Car Street ","Nagercoil","Tamil Nadu",{"$f":"VLOOKUP(Table1[[#This Row],[Location]],'[1]MFS Add.List'!$D$1:$Q$178,14,0)","v":629001},"04652 - 233552","-",true,"-","mfsnagarkoil@Kfintech.com","Open"]
["123","UFC","SA81","Salem","No. 20 Ramakrishna Road","Above Federal Bank","-","Salem","Tamil Nadu",636007,"0427 4040273 ","-",true,"-","utisalemufc@Kfintech.com","open"]
["132","UFC","TV50","Tirunelveli","1st Floor 10/4 Thaha Plaza","South Bypass Road","Vannarpet","Tirunelveli","Tamil Nadu",627003,"0462 2502775 ","-",true,"-","utitirunelveliufc@Kfintech.com","open"]
["-","UFC","TU49","Tirupur","1st Floor Tip Top Business Centre ","(Near Railway Station Rear Entrance)","104-109 College Road","Tirupur","Tamil Nadu",641602,"0421 4243918 ","-",true,"-","utitirupurufc@Kfintech.com","open"]
["-","UFC","TR30","Trichy","No 19/1 Kingston Park","Puthur High Road","Opp. Aruna Theatre \nPuthur woriyur","Tiruchirapalli","Tamil Nadu",620017,"0431 4040272 ","-",true,"-","utitrichyufc@Kfintech.com","open"]
["-","OPA","TC40","Tuticorin","4 - B A34 - A37","Mangalmal Mani Nagar","Opp. Rajaji Park Palayamkottai Road","Tuticorin","Tamil Nadu",{"$f":"VLOOKUP(Table1[[#This Row],[Location]],'[1]MFS Add.List'!$D$1:$Q$178,14,0)","v":628003},"0461-2334603","-",true,"-","mfstuticorin@Kfintech.com","Open"]
["-","UFC","VL88","Vellore","SAI RAJYA\"","First Floor Back side","No.14Anna Salai (Officers line)","Vellore ","Tamil Nadu",632001,"0416 4200901 ","-",true,"-","utivelloreufc@Kfintech.com","open"]
["Shri. A Giri ","BDA","KB85","Kumbakonam","4 & 5 KVJ Complex ","-","49 T S R Big Street ","Kumbakonam","Tamilnadu",612001,"0435- 2431063 ","-",true,"2014-08-13","mfsKumbakonamcr@kfintech.com","open"]
["117","UFC","PO50","Pondicherry","No. 20 Savitha Plaza","100 Feet Road","Anna Nagar","Pondicherry","Pondicherry ",605005,"0413 2203369","-",true,"2019-10-18","utipondicherryufc@Kfintech.com","open"]
["-","UFC","AG01","Agartala","Surjya Chowmuhani","H G B Road","-","Agartala","Tripura",799001,"0381-2383995","-",true,"2013-06-01","utiagartalaufc@Kfintech.com ","open"]
["-","UFC","GH60","Guwahati","Hindustan Building 1St Floor","-","Opp Nakkata Pukhuri","Guwahati","Assam",781001,8811033374,"-",true,"2013-06-01","utiguwahatiufc@Kfintech.com","open"]
["-","UFC","SH71","Shillong","Saket Bhawan ","Police Bazar ","Abov Mohnni Store ","Shillong","Meghalaya",793001,"03842-230147","-",true,"2013-06-01","Utishillongufc@Kfintech.com","open"]
["128","UFC","SL02","Silchar","Uti Asset Managemant Company Ltd","N.N. Dutta Road ","-","Silchar","Assam",788001,"03842-230147","-",true,"2013-06-01","utisilcharufc@Kfintech.com","open"]
["-","UFC","TS01","Tinsukia","A – 2  Ward No : 6","Chirapatty Road","-","Tinsukia","Assam",786125,"0374-2341277","-",true,"2013-06-01","utitinsukiaufc@Kfintech.com","open"]
["Shri. Sajal Nandi","BDA","NO01","Nagaon","Adp Road","Christian Patty","Nagaon","Assam","Assam",782001,"03672-233016","-",true,"2013-06-01","mfsnagaoncr@kfintech.com","open"]
["Shri. Uday Chatterjee","BDA","BG85","Bongaigaon","Natun Para","College Road","P.O. Bongaigaon","Bongaigaon","Assam",783380,9706058003,"-",true,"2014-08-13","mfsBongaigaoncr@kfintech.com","open"]
["91","UFC","JH85","Jorhat","UTI Financial Center","1st Floor Hotel President Complex Thana Road","Gar Ali","Jorhat Assam","Assam",785001,"0376 – 2300024/25","-",true,"-","Kfpl.johrat@Kfintech.com","open"]
["Shri. Vivek R Kalaskar","OPA","NN22","Nanded","Shop No.4 ","Santakripa Market G G Road","Opp.Bank Of India","Nanded","Maharashthra",{"$f":"VLOOKUP(Table1[[#This Row],[Location]],'[1]MFS Add.List'!$D$1:$Q$178,14,0)","v":431601},"02462-237885","-",true,"-","mfsnanded@Kfintech.com","Open"]
["-","OPA","AP89","Ananthapur","Plot No: 12-313,","Balaji Towers, Suryanagar","Ananthapur Village","Anantapur","Andhra Pradesh",{"$f":"VLOOKUP(Table1[[#This Row],[Location]],'[1]MFS Add.List'!$D$1:$Q$178,14,0)","v":515001},"08554-244449","-",true,"-","mfsananthapur@Kfintech.com","Open"]
["-","OPA","EL03","Eluru","DNO-23A-7-72/73K K S PLAZA MUNUKUTLA VARI STREET","OPP ANDHRA HOSPITALS","R R PETA","Eluru","Andhra Pradesh",{"$f":"VLOOKUP(Table1[[#This Row],[Location]],'[1]MFS Add.List'!$D$1:$Q$178,14,0)","v":534002},"08812-227851 / 52 / 53 / 54","-",true,"-","mfseluru@Kfintech.com","Open"]
["-","UFC","GU71","Guntur","Door No. 31-9-832","9th Line, Second Cross","Arundelpet","Guntur","Andhra Pradesh",522002,"(0863) 2333818/2333819","-",true,"-","utigunturufc@Kfintech.com","open"]
["-","OPA","HY34","Hyderabad","No:303, Vamsee Estates","Opp: Bigbazaar","Ameerpet","Hyderabad","Telangana",{"$f":"VLOOKUP(Table1[[#This Row],[Location]],'[1]MFS Add.List'!$D$1:$Q$178,14,0)","v":500016},"040-44857874 / 75 / 76","-",true,"-","mfshyderabad@Kfintech.com","Open"]
["-","UFC","SC16","Hyderabad -Sec - bad","10-2-99/1 Ground Floor","Sterling Grand Cvk Road No:3","West Marred Pally","Secunderabad","Telangana",500026,"040-23433118","-",true,"-","utisecunderabadufc@Kfintech.com","open"]
["-","UFC","AB10","Hyderabad-Abids","4-1-898 1St Floor","Oasis Plaza","Tilak Road Abids","Hyderabad","Telangana",500001,"040-24750381","-",true,"-","utihyderabadufc@Kfintech.com","open"]
["-","UFC","PJ15","Hyderabad-Punjagutta","6-3-679 I Floor","Elite Plaza","Punjagutta","Hyderabad","Telangana",500082,"040-23431595","-",true,"-","utipanjaguttaufc@Kfintech.com","open"]
["-","UFC","KD10","Kadapa","2/790  Sairam Towers","Nagaraj Pet","Near Kotireddy Womens College","Kadapa","Andhra Pradesh",516001,"08562-222240","-",true,"-","utikadapaufc@Kfintech.com","open"]
["Shri. G Ramprasad ","OPA","KA03","Karimnagar","2nd ShutterHNo. 7-2-607 Sri Matha ","Complex Mankammathota ","-","Karimnagar","Telangana",{"$f":"VLOOKUP(Table1[[#This Row],[Location]],'[1]MFS Add.List'!$D$1:$Q$178,14,0)","v":505001},"0878-2244773","-",true,"-","mfskarimnagar@Kfintech.com","Open"]
["Shri. T S Setty   ","OPA","KU03","Kurnool","Shop No:47","2nd Floor","S komda Shoping mall","Kurnool","Andhra Pradesh",{"$f":"VLOOKUP(Table1[[#This Row],[Location]],'[1]MFS Add.List'!$D$1:$Q$178,14,0)","v":518001},"08518-228550","-",true,"-","mfskurnool@Kfintech.com","Open"]
["112","UFC","NL13","Nellore","16/1433 1St Floor","Sunshine Plaza","Ramalingapuram ","Nellore","Andhra Pradesh",524002,"0861-2335818","-",true,"-","utinelloreufc@Kfintech.com","open"]
["-","UFC","RM79","Rajahmundry","Jupudi Plaza D No:7-26-21 1St Floor","Maturi Vari Street","T Nagar0","Rajahmundry","Andhra Pradesh",533101,"0883-2438188","-",true,"-","utirajahmundryufc@Kfintech.com","open"]
["129","UFC","SL04","Solapur","157/2C","Rajabhau Patwardhan Chowk","Railway Line","Solapur","Maharashthra",413001,"0217-2311787","0217-2311768",true,"-","utisolapurufc@Kfintech.com","open"]
["-","UFC","TP89","Tirupathi","Uti Mutual Funds","20-1-201C Groundfloor","Korlagunta Junction","Tirupati","Andhra Pradesh",517501,"0877-2970308","-",true,"-","utitirupathiufc@Kfintech.com","open"]
["-","UFC","VJ32","Vijayawada","Door No.27-12-34","B S N Reddy Complex, Gudavallivari Street","Governorpet","Vijayawada","Andhra Pradesh",520002,"(0866) 2578819/2578129",2444129,true,"-","utivijayawadaufc@Kfintech.com","open"]
["-","UFC","VZ20","Visakhapatnam","Uti Financial Centre# 47-1-99","1st Floor Dwaraka  Nagar","6th Lane Beside BVK College","Visakhapatnam","Andhra Pradesh",530016,"0891-2748121","-",true,"-","utivisakhapatnamufc@Kfintech.com","open"]
["-","UFC","WR89","Warangal","Door No. 15-1-237 Shop Nos. 5 5A & 6 ","First Floor ‘Warangal City Centre’","Adjacent to Guardian Hospital Near Mulugu Cross Road","Warangal","Telangana",506007,"0870-2441099","-",true,"-","utiwarangalufc@Kfintech.com","open"]
["Shri. Gella Amarnath  ","OPA","KH03","Khammam","KFin Technologies Pvt. Ltd, C/o UTI Mutual Fund","H.No: 10-2-4","Srinivasa Plaza 1st floor Mamillagudem","Beside Over Bridge","Telangana",507001,9014152929,"-",true,"-","mfskhammam@kfintech.com","Open"]
["Shri. C Giridhar  ","BDA","NZ23","Nizamabad","H.No:5-6-524","Opp: Bata Show Room Munnuru Kapu kalyana Mandapam Road Line.","Pragathi Nagar  Hyderabad Road","Nizamabad","Andhra Pradesh",503001,"08462-243266","-",true,"2015-07-10","nizamabadcr@Kfintech.com","open"]
["-","UFC","AM23","Amaravathi","1St Floor Vimaco Tower","Bus Stand Road","Opp Osmaniya Masjid","Amravati","Maharashthra",444601,"0721-2552905","-",true,"-","utiamaravathiufc@Kfintech.com ","open"]
["70","UFC","AU65","Aurangabad","Ground Floor Yashodhan Plot No-10","Bhagya Nagar Besides Baba Petrol Pump","-","Aurangabad","Maharashthra",431001,"02402345219/2356212",2402345229,true,"-","utiaurangabadufc@Kfintech.com","open"]
["-","UFC","BH29","Bhopal","Plot No 6 V V Plaza","M P Nagar Zone-2 Bank Street","Above Dhan Laxmi Bank","Bhopal","Madhya Pradesh",462011,"(0731) 2534958/2533869/2535607","-",true,"-","utibhopalufc@Kfintech.com","open"]
["Shri. Akshay Chhajed ","OPA","DH22","Dhule","Ground Floor Ideal Laundry Lane No 4","Khol Galli Near Muthoot Finance","Opp Bhavasar General Store","Dhule","Maharashthra",{"$f":"VLOOKUP(Table1[[#This Row],[Location]],'[1]MFS Add.List'!$D$1:$Q$178,14,0)","v":424001},"02562-282823","-",true,"-","mfsdhule@Kfintech.com","Open"]
["-","UFC","IN11","Indore","UG 3 & 4","Starlit Tower","Yashwant Niwas Road","Indore","Madhya Pradesh",452003,"0713-4077519","-",true,"-","utiindoreufc@Kfintech.com","open"]
["-","UFC","JB02","Jabalpur","74-75 1st Floor ","Gol Bazar Above HDFC Bank","Jabalpur","Jabalpur","Madhya Pradesh",482002,"0761-4020904","-",true,"-","utijabalpurufc@Kfintech.com","open"]
["138","UFC","JG73","Jalgaon","First Floor, Plot No-68","Zilha Peth, Behind Old Court","Near Gujrat Sweet Mart","Jalgaon","Maharashthra",425001,"(0257) 2240480/2240486","-",true,"-","utijalgaonufc@Kfintech.com","open"]
["-","UFC","NG26","Nagpur","Shraddha House 1St Floor","S V Patel Marg","-","Nagpur","Maharashthra",440001,"0712-2529135","-",true,"-","utinagpurufc@Kfintech.com","open"]
["-","UFC","NA22","Nasik","Ground Floor Apurva Avenue ","Nr. Kusumagraj Pratishthan ","Tilak Wadi","Nasik","Maharashthra",422002,"0253-2312537","0253-2570250",true,"-","utinasikufc@Kfintech.com","open"]
["118","UFC","RA23","Ratlam","101 R S PARADISE FIRST FLOOR ABOVE TRIMURTI SWEETS","OPP. ANKLESARIA HONDA SHOWROOM","158 DO BATTI SQUARE ","Ratlam","Madhya Pradesh",457001,"07412-243001","-",true,"-","utiratlamufc@Kfintech.com","open"]
["Shri. Santosh H Gandhi ","BDA","AH02","Ahmednagar","3312 Khist Galli ","Opp Gurukrupa Sadi Centre","-","Ahmednagar","Maharashtra",414001,"0241-2355657","-",true,"-","mfsahmednagarcr@kfintech.com","open"]
["Shri. Sumit Kataria ","BDA","UJ23","Ujjain","C/o Sumit Kartaria 68 Mussadipura","Sati marg","-","Ujjain","Madhya Pradesh",456006,"0734-2554795","-",true,"2013-03-15","mfsujjaincr@kfintech.com","open"]
["Shri. B S Wadhawan ","BDA","CD23","Chandrapur","C/O Mr B S Wadhawan","3rd Floor City Plaza","Above New Purti Bazar Near Jatpura Gate","Chandrapur","Maharashtra","442402","07172-255562","-",true,"2015-06-30","chandrapurcr@Kfintech.com","open"]
["Shri. Mahesh  Kumar Raikwar","BDA","SG23","Sagar","Shop No.9","1st Floor Satyam Complex","In front of Cant Mall 5 Civil Lines","Sagar","Madhya Pradesh",470002,"07582 221 871","-",true,"2015-08-19","sagarcr@Kfintech.com","Open"]
["-","UFC","AK23","Akola","Lakhma Apartment Ground Floor","Near Anand Bakery","Ramdaspeth","Akola","Maharashthra",444001,"0724 – 2410711","-",true,"-","Kfpl.Akolaufc@Kfintech.com","open"]
["Shri. Pradeep Kumar Nayak","BDA","PU01","Puri","Lavanyapuri Near U P School","Sarvodaya Nagar","Puri","Orissa","Orissa",752002,9437286269,"-",true,"-","mfspuricr@kfintech.com","open"]
["71","UFC","BL40","Balasore","Plot No:- 570 1st Floor","Station Bazar","Near Durga Mandap","Balasore","Orissa",756001,"06782-241938","-",true,"-","utibalasoreufc@Kfintech.com","open"]
["-","UFC","BS01","Barasat","57 Jessore Road","Sethpukur  1st Floor","-","Barasat","West Bengal",700124,"033-25844645","-",true,"-","utibarasatufc@Kfintech.com","open"]
["-","UFC","BR01","Berhampore (WB)","1/5 K K Banerjee Road 1st Floor","Gorabazar","Po Berhampore ","Dist Murshidabad","West Bengal",742101,"03482 - 274 251","-",true,"-","utiberhamporeufc@Kfintech.com","open"]
["-","UFC","BE40","Berhampur (OR)","Near Mahamayee Womens College","Dharma Nagar 4th East Side Lane","Dist Ganjam","Orissa","Orissa",760001,"0680 - 2226295","-",true,"-","utiberhampurufc@Kfintech.com","open"]
["75","UFC","BI83","Bhilai","Shop No 38 Commercial Complex","Nehru Nagr East","Near ICICI Bank","Bhilai","Chatisgarh",490020,"0788 2292777 ","-",true,"-","utibhilaiufc@Kfintech.com","open"]
["-","UFC","BH27","Bhubaneswar","24 Janpath ","1ST FLOOR O C H C BUILDING","Near Ram Mandir","Bhubaneswar","Orissa",751001,"0674-2390365","-",true,"-","utibhubaneswarufc@Kfintech.com","open"]
["78","UFC","BK72","Bokaro","Plot No.C-1/20-C Ground Floor","City Centre Sector-4 Bokaro Steel  City","Near Police Club","Bokaro","Jharkhand",827004,"06542-233350","-",true,"-","utibokaroufc@Kfintech.com","open"]
["79","UFC","BU01","Burdwan","37A G T Road ","Sree Gopal Bhavan | Parbirhata ","PO Sripally ","Burdwan","West Bengal",713103,"0342-2647358","-",true,"-","Utiburdwanufc@Kfintech.com","open"]
["82","UFC","CK09","Cuttack","GROUND FLOOR PLOT NO – 99 ","VIVEKANANDA LANE ","BADAMBADI KATHJODI MAIN ROAD ","Cuttack","Orissa",753012,"0671-2315788","-",true,"-","uticuttackufc@Kfintech.com","open"]
["-","UFC","DA94","Dhanbad","111/112 Sriram Mall1st Floor","Shastri Nagar","-","Dhanbad","Jharkhand",826001,9264445982,"Changed From 17th Feb",true,"-","utidhanbadufc@Kfintech.com","open"]
["-","UFC","DU47","Durgapur","3rd Admn Bldg 2nd Floor","City Centre","-","Durgapur","West Bengal",713216,"0343-2543993","-",true,"-","utidurgapurufc@Kfintech.com","open"]
["-","UFC","GY81","Gaya","Zion Complex 1st Floor","Opp. Fire Brigade ","Swaraj Puri Road","Gaya","Bihar",823001,"0631-2221937","-",true,"-","utigayaufc@Kfintech.com","open"]
["Shri. Aparesh Choudhuri  ","OPA","JP79","Jalpaiguri","D B C Road Opp Nirala Hotel","Opp Nirala Hotel","Opp Nirala Hotel","Jalpaiguri","West Bengal",{"$f":"VLOOKUP(Table1[[#This Row],[Location]],'[1]MFS Add.List'!$D$1:$Q$178,14,0)","v":735101},"03561-222136","-",true,"-","mfsjalpaiguri@Kfintech.com","Open"]
["-","UFC","JM28","Jamshedpur","1 / A Ram Mandir Area","Main Road Bistupur","Jamshedpur","Jharkhand","Jharkhand",831001,"0657 6506502","-",true,"-","utijamshedpurufc@Kfintech.com","open"]
["-","UFC","KY05","Kalyani","B - 12/1 Kalyani","Central park","Dist Nadia","Kalyani","West Bengal",741235,"033 2502 5157","-",true,"-","utikalyaniufc@Kfintech.com","open"]
["-","UFC","KR96","Kharagpur","Atwal Real Estate Building","O T Road  PO - Inda ","Dist Paschim Midnapore","Kharagpur","West Bengal",721305,"03222-227950","-",true,"-","utikharagpurufc@Kfintech.com","open"]
["-","UFC","CA05","Kolkata-NS Rd","29 N S Road","1st Floor","-","Kolkata","West Bengal",700001,"033-40056645","-",true,"-","utikolkataufc@Kfintech.com","open"]
["-","UFC","RB07","Kolkata-Rashbehari","99 Rashbehari Avenue","Ground Floor","-","Kolkata","West Bengal",700029,"033-40031611","-",true,"-","utirashbehariufc@Kfintech.com","open"]
["-","UFC","SL08","Kolkata-Salt Lake","AD 55","Salt Lake City","Sector 1","Kolkata","West Bengal",700064,"03340041421","-",true,"-","utisaltlakeufc@Kfintech.com","open"]
["102","UFC","ML97","Malda","10/26 K J Sanyal Road","1st Floor","Opp Gazole Taxi Stand.","Malda","West Bengal",732101,"03512-223762","-",true,"-","utimaldaufc@Kfintech.com","open"]
["-","UFC","PA48","Patna","Harswardhan Arcade 3rd floor","Beside Hotel Samrat International","Frazer Road ","Patna","Bihar",800001,"0612- 2230886","-",true,"-","utipatnaufc@Kfintech.com","open"]
["-","UFC","RA40","Raipur","Vanijya BhavanGround Floor","Sai Nagar Jail Road","-","Raipur","Chatisgarh",492009,"0771-4051862","-",true,"-","utiraipurufc@Kfintech.com","open"]
["-","UFC","RN80","Ranchi","SPG Mart Commercial Complex","Old H B Road Bahu Bazar ","-","Ranchi","Jharkhand",834001,7542979555,"-",true,"-","utiranchiufc@Kfintech.com","open"]
["-","UFC","RK70","Rourkela","Shree Vyas Complex","Near Shalimar Hotel","Panposh Road","Rourkela","Orissa",769004,"0661-2401118","-",true,"-","utirourkelaufc@Kfintech.com","open"]
["-","UFC","SB80","Sambalpur","1st Floor, R N Complex","Opp Budharaja High School","Beside LIC Building, Budharaja","Sambalpur","Orissa",768004,"(0663) 2541214/1213/1215","-",true,"-","utisambalpurufc@Kfintech.com","open"]
["-","UFC","SE01","Serampore","6/A/2 Roy Ghat Lane","Hinterland Complex","-","Hooghly","West Bengal",712201,"033-26529167","-",true,"-","utiseramporeufc@Kfintech.com","open"]
["-","UFC","SI49","Siliguri","Jeevan Deep Building Ground Floor","Sevoke Road Guru Nanak Sarani","Opp Sony Tower","Siliguri","West Bengal",734001,"0353-2522043","-",true,"-","utisiliguriufc@Kfintech.com","open"]
["Shri. Asok Pramanik   ","BDA","HW01","Howrah","Uluberia - R.S.","Majherati ","Jaduberia","Howrah","West Bengal",711316,9836792313,"-",true,"-","mfshowrahcr@kfintech.com","open"]
["-","BDA","ND01","Nadia (Krishnagar)","Udayan","20 M.M. Street PO Krishnagar","Near Sadar Hospital Traffic More","Nadia","West Bengal",741101,9732724157,"-",true,"-","mfsnadiacr@kfintech.com","open"]
["-","BDA","NL01","Nalanda","Hotel Anukul","Post Office Road","Bihar Sharif","Nalanda","Bihar",803101,9204439963,"-",true,"-","mfsnalandacr@kfintech.com","open"]
["-","BDA","UT01","Uttar Dinajpur(Raiganj)","SUPERMARKET Block 3 1st Floor","NEAR GITANJALI CINEMA HALL","Po Raiganj","Uttar Dinajpur","West Bengal",733134,9851586808,"-",true,"-","mfsdinajpurcr@kfintech.com","open"]
["-","BDA","PB01","Port Blair","Miduna Tower Ground Floor","5 Middle Point","122 M G Road","Port Blair","Andaman & Nicobar Islands",744101,9531833687,"-",true,"-","mfsportblaircr@kfintech.com","open"]
["Shri. Manoj Kumar Dolai ","BDA","EM01","East Midnapore","Town Padumbasan ","P O Tamluk ","East Midnapore ","West Bengal","West Bengal",721636,9609493032,"-",true,"-","mfsmidnaporecr@kfintech.com","open"]
["Shri. Subhasis Das  ","BDA","BN85","Bankura","Rampur Road","Old Rathtola","Near City Nursing Home ","Bankura","West Bengal",722101,8759578356,"-",true,"2014-08-13","mfsBankuracr@kfintech.com","open"]
["69","UFC","AS01","Asansol","UTI Financial Center","1st Floor","129 G.T. road Rambandhutala","Asansol","West Bengal",713303,"0341-2970089","-",true,"2019-03-18","Kfpl.utiasansolufc@Kfintech.com ","open"]
["Shri. Ved Prakash Gupta   ","BDA","BP01","Bhojpur","C/o Mr. V P Gupta","Mahadeva RoadAra Bhojpur Bihar","-","Bhojpur","Madhya Pradesh",802301,9572052607,"-",true,"2016-03-01","mfsbhojpurcr@Kfintech.com","open"]
["-","BDA","PR01","Paradip","NEW TRADE CENTER 1","2nd Floor | UNIT 5 | BANK STREET ","-","Paradip","Orissa","754 142 ",9337060557,"-",true,"2016-03-29","mfsparadipcr@Kfintech.com","Close"]
["Shri. Manoj Kumar Singhania  ","BDA","PA01","Purulia","RANCHI ROAD BANSH BUNGLOW (HILL ROAD","OPP. SWIMMING POOL","Purulia","West Bengal ","West Bengal",723101,9434013330,"-",true,"2018-08-13","mfspuruliacr@Kfintech.com","open"]
["-","BDA","AR01","Arambagh","Arambagh Panchayet samity market complex","Opp Rabindra Bhavan Room no 8","-","Arambagh","West Bengal",712601,9332289812,"-",true,"2019-03-14","Kfpl.arambaghcr@Kfintech.com","open"]
["-","BDA","DJ01","Daltonganj","Mahendra Arcade 2nd Floor","Near Zila School chowk","-","Daltonganj","Orissa",822101,9955365440,"-",true,"2019-04-06","kfpl.daltonganjcr@Kfintech.com","open"]
["-","UFC","BS24","Bilaspur","S-103 Anandam Plaza Ground Floor","In front of Rama Port","VyaparVihar","Bilaspur","Chatisgarh",495001,"07752 – 405538","-",true,"2019-11-07","Kfpl.utibilaspurufc@Kfintech.com ","open"]
["-","UFC","AG54","Agra","60/4 FCI Building","Sanjay Place","-","Agra","Uttar Pradesh",282002,"0562-4309927","-",true,"-","utiagraufc@Kfintech.com","open"]
["-","UFC","AL17","Aligarh","3/339-A","Opp Atrauli Bus Stand","Ramghat Road","Aligarh","Uttar Pradesh",202001,7518801902,"-",true,"-","utialigarhufc@Kfintech.com","open"]
["-","UFC","AL33","Allahabad","4 S.P. Marg","1st Floor","Civil Lines","Allahabad","Uttar Pradesh",211001,7518801903,"-",true,"-","utiallahabadufc@Kfintech.com","open"]
["-","UFC","AB40","Ambala","5686-87","Nicholson Road","Opp. Ashoka Dairy","Ambala Cantt.","Haryana",133001,7518801904,"-",true,"-","utiambalaufc@Kfintech.com","open"]
["-","UFC","BA66","Bareilly"," 116/117 Deen Dayal Puram","Opp Jeevan Rekha Hospital"," Izzatnagar","Bareilly","Uttar Pradesh",243122,7518801905,"-",true,"-","utibareillyufc@Kfintech.com","open"]
["-","UFC","BH40","Bhagalpur","1St Floor Kavita Apartment","M G Road","Near Head Post Office","Bhagalpur","Bihar",812001,7518801906,"-",true,"-","utibhagalpurufc@Kfintech.com","open"]
["-","UFC","DB42","Darbhanga","1st Floor, JR Plaza","Raj Kumar Ganj Main Road","-","Darbhanga","Bihar",846004,7518801907,"-",true,"-","utidarbhangaufc@Kfintech.com","open"]
["-","UFC","DH34","Dehradun","56 Rajpur Road","Opp.Hotel Madhuban Palace","-","Dehradun","Uttaranchal",248001,7518801908,"-",true,"-","utidehradunufc@Kfintech.com","open"]
["-","UFC","FA56","Faridabad","SCO-3 1st Floor","Above Bank of Baroda","Sector -16","Faridabad","Haryana",121002,7518801909,"-",true,"-","utifaridabadufc@Kfintech.com","open"]
["-","UFC","GZ57","Ghaziabad","C-53C","RDC Raj Nagar","Opp Petrol Pump","Ghaziabad","Uttar Pradesh",201002," 0120-4258381","-",true,"-","utighaziabadufc@Kfintech.com","open"]
["88","UFC","GR74","Gorakhpur","Shop No.16-20","Cross Road The Mall ","Bank Road ","Gorakhpur","Uttar Pradesh",273001,7518801911,"-",true,"-","utigorakhpurufc@Kfintech.com ","open"]
["-","UFC","GA92","Gurgaon","SCO-28","1st Floor","Sector-14","Gurgaon","Haryana",122001,"(0124) 4245200 /4362538/7518801912","-",true,"-","utigurgaonufc@Kfintech.com","open"]
["-","UFC","GW35","Gwalior","45-A","Alaknanda Tower","City Centre","Gwalior","Madhya Pradesh",474011,7518801913,"-",true,"-","utigwaliorufc@Kfintech.com","open"]
["Shri. Sanjeev Kumra   ","OPA","HI40","Hissar","KFin Technologies Pvt. Ltd, C/O Uti Mutual Fund","C/o Shri Sanjeev Kumra","79-SModel Town ","Hissar","Haryana",125005,7518801821,"-",true,"-","hissarcr@Kfintech.com","Open"]
["90","UFC","JH73","Jhansi","UTI Financial Center","1st Floor Basera Arcade (Plot No. 551/1 & 556/2) BKD-Chitra Road","In front of Dhyanchand StadiumCivil Lines","Jhansi","Uttar Pradesh",284002,"0510 - 2441877","-",true,"-","kfpl.utijhansiufc@Kfintech.com","open"]
["-","UFC","KN15","Kanpur","16/77","Civil Lines","-","Kanpur","Uttar Pradesh",208001,7518801914,"-",true,"-","utikanpurufc@Kfintech.com","open"]
["-","UFC","LK16","Lucknow","19/32 Aryan Business Park","IInd Floor M G Road","Old Park Road Hazratganj","Lucknow","Uttar Pradesh",226001,"0522-4010533 /7518801915","-",true,"-","utilucknowufc@Kfintech.com","open"]
["105","UFC","MT01","Mathura","1st Floor, SFD Tower","Goverdhan Road","Opp Jal Nigam Office, krishna Nagar","Mathura","Uttar Pradesh",281004,"0565-2972109","-",true,"-","utimathuraufc@kfintech.com","Open"]
["106","UFC","ME76","Meerut","10/8 Niranjan Vatika","Begum Bridge Road","Near Baccha Park","Meerut","Uttar Pradesh",250001,7518801916,"-",true,"-","utimeerutufc@Kfintech.com","open"]
["108","UFC","MO84","Moradabad","Sri Ballabh Complex","Near Bank Of Baroda","Civil Lines","Moradabad","Uttar Pradesh",244001,7518801917,"-",true,"-","utimoradabadufc@Kfintech.com","open"]
["109","UFC","MZ84","Muzaffarpur","Lic Zonal Office Campus  Ground Floor","Infront Of Devi Mandir","Ramna","Muzaffarpur","Bihar",842002,7518801918,"-",true,"-","utimuzaffarpurufc@Kfintech.com","open"]
["-","UFC","NO16","Noida","N-10 & N-11 First Floor","Above indusind Bank","Sector- 18","Noida","Uttar Pradesh",201301,7518801919,"-",true,"-","utinoidaufc@Kfintech.com","Open"]
["-","UFC","PP93","Panipat","Office No. 9 2nd Floor","N K Tower Near Hdfc Bank","G T Road","Panipat","Haryana",132103,7518801920,"-",true,"-","utipanipatufc@Kfintech.com","open"]
["120","UFC","RO40","Rohtak","UTI Financial Center","2Nd Floor Bank Square buildingPlot No 120-121","opp myna tourist complexDelhi road","Rohtak","Haryana",124001,"01262-254021/22","-",true,"2019-05-09","Kfpl.utirohtakufc@Kfintech.com","open"]
["-","OPA","RO16","Roorkee","Shree Ashadeep Complex 16","Civil Lines","Near Income Tax Office","Roorkee","Uttaranchal",{"$f":"VLOOKUP(Table1[[#This Row],[Location]],'[1]MFS Add.List'!$D$1:$Q$178,14,0)","v":247667},7518801845,"-",true,"-","mfsroorkee@Kfintech.com","Open"]
["-","UFC","SM59","Shimla","Bell Villa","5th Floor, Below Scandal Point","The Mall","Shimla","Himachal Pradesh",171001,"(0177) 2657803/ 7518801921","-",true,"-","utishimlaufc@Kfintech.com","open"]
["Shri. Pradeep Parolia   ","OPA","SU29","Sultanpur","1st Floor, Ramashanker Market","Civil Line","-","Sultanpur","Uttar Pradesh",{"$f":"VLOOKUP(Table1[[#This Row],[Location]],'[1]MFS Add.List'!$D$1:$Q$178,14,0)","v":228001},7518801854,"-",true,"-","mfssultanpur@Kfintech.com","Open"]
["-","UFC","VR36","Varanasi"," D58/2A/11st Floor","Bhawani Market","Near Kuber ComplexRathyatra","Varanasi","Uttar Pradesh",221001,7518801922,"-",true,"-","utivaranasiufc@Kfintech.com","open"]
["Shri. Om Prakash Thakur ","BDA","RE13","Rewari","SCO-71st Floor ","Above Bank of Baroda","Brass Market","Rewari","Haryana",123401,9896267637,"-",true,"-","mfsrewaricr@kfintech.com","open"]
["Shri. Vijay Kumar Rajak","BDA","KB23","Korba","Shop No- 31","Shubdha Complex","T P Nagar Korba (CG)","Korba","Chatisgarh",495677,7518801826,"-",true,"2019-07-08","korbacr@Kfintech.com@Kfintech.com","open"]
["Shri. Ajay Dinkar Modak ","BDA","ST23","Satna","Prem Nagar","Near MPEB Office","-","Satna","Madhya Pradesh",485001,7518801847,"-",true,"2015-08-04","satnacr@Kfintech.com","open"]
["Shri. Rabindra Kumar Sah ","BDA","KH23","Katihar","C/o Mr Rabindra Kumar Sah Keshri Market","Barbanna Gali Baniatola Chowk M G Road","-","Katihar","Bihar",854105,6452244155,"-",true,"2016-03-11","kaitharcr@Kfintech.com","open"]
["Shri. Ashok Gaur ","OPA","AZ19","Azamgarh","KFin Technologies Pvt. Ltd, C/O Uti Mutual Fund","1St Floor","Alkal Building","Opp. Nagaripalika Civil Line","Uttar Pradesh",276001,7518801805,"-",true,"2017-09-05","mfsazamgarh@Kfintech.com","Open"]
["Shri. Puneet Seth","OPA","MI34","Mirzapur","KFin Technologies Pvt. Ltd, C/O Uti Mutual Fund","Abhay MandirAbhay Yatri Niwas 1st Floor","Above HDFC Bank","Dankin Gunj","Uttar Pradesh",231001,7518801836,"-",true,"2017-09-01","mfsmirzapur@Kfintech.com","Open"]
["-","OPA","YA21","Yamuna Nagar","KFin Technologies Pvt. Ltd, C/O Uti Mutual Fund","Jagdhari Road","Above Uco Bank","Near D.A.V. Girls College","Haryana",135001,7518801857,"-",true,"2017-09-01","mfsyamunanagar@Kfintech.com","Open"]
["Shri. Ajay Dudeja ","OPA","SN09","Sonepat","2nd floor","DP Tower, Model Town","Near Subhash Chowk","Sonepat","Haryana",{"$f":"VLOOKUP(Table1[[#This Row],[Location]],'[1]MFS Add.List'!$D$1:$Q$178,14,0)","v":131001},7518801853,"-",true,"2018-02-18","mfssonepat@Kfintech.com","Open"]
["-","BDA","SY01","Shyamnagar","144 Dr B C Roy Road","Shyamnagar","PO: Noapara Dist: North 24 Parganas","West Bengal ","West Bengal",743127,"033-25867770","-",true,"2018-08-13","mfsshyamnagarcr@Kfintech.com","open"]
["Shri. Nand Kumar Verma ","BDA","FZ01","Firozabad","42/1 Shivaji Marg","Firozabad","-","Uttar Pradesh","Uttar pradesh","283 203","05612 248290","-",true,"2018-09-21","ferozabadcr@Kfintech.com ","open"]
["-","UFC","HD01","Haldwani","UTI Financial Center","1st FloorA K TowerPlot No 4","Durga City CenterKhasra No.260Bhotia ParoHaldwani","Nainital","Uttaranchal",263139,"0594-6222433","-",true,"2019-03-25","Kfpl.haldwaniufc@Kfintech.com","open"]
["Shri. Sadan Kumar Hisariya ","OPA","BE41","Begusarai","C/o Dr Hazari Prasad Sahu","Ward No 13, Behind Alka Cinema","Begusarai (Bihar)","Begusarai","Bihar",{"$f":"VLOOKUP(Table1[[#This Row],[Location]],'[1]MFS Add.List'!$D$1:$Q$178,14,0)","v":851117},7518801807,"-",true,"2019-06-05","mfsbegusarai@Kfintech.com","Open"]
["-","UFC","KH40","Kolhapur","11 & 12 , Ground Floor, Ayodhya Towers"," CS No 511,KH-1/2, 'E' Ward","Dabholkar Corner, Station Road","Kolhapur","Maharashthra",416001,"(0231) 2657315/25, 2666603","-",true,"-","utikolhapurufc@Kfintech.com","open"]
["-","OPA","KC14","Mumbai","24/B Raja Bahadur Compound","Ambalal Doshi Marg","Behind Bse Bldg","Fort","Maharashthra",{"$f":"VLOOKUP(Table1[[#This Row],[Location]],'[1]MFS Add.List'!$D$1:$Q$178,14,0)","v":400001},"022-66235353","022-66335192",true,"-","mumbaimfd@Kfintech.com","Open"]
["-","UFC","BK21","Mumbai-Bandra Kurla","Ground Floor Uti Tower Gn Block","Bandra Kurla Complex","Bandra East","Mumbai ","Maharashtra",400051,"022-26528110","-",true,"-","utibandrakurlaufcufc@Kfintech.com","open"]
["-","UFC","BO41","Mumbai-Borivali","Purva Plaza Next To Centurion Bank","Opp. Reliance Energy Shimpoli  ","Borivali (West)","Mumbai ","Maharashtra",400092,"022-28994770","-",true,"-","utiborivaliufc@Kfintech.com","open"]
["-","UFC","GH42","Mumbai-Ghatkopar","102, 1st  Floor","Sai Plaza, Jawahar Road","Opp. Ghatkopar Rly Station","Mumbai ","Maharashtra",400077,"(022) 25010833/0715","-",true,"-","utighatkoparufc@Kfintech.com","open"]
["-","UFC","GR14","Mumbai-Goregaon","101Accord Commercial Complex ","First Floor Station Road","Opp. BEST Bus DepotGoregaon East","Mumbai ","Maharashtra",400063,"022-29270103","-",true,"-","utigoregaonufc@Kfintech.com","open"]
["-","UFC","AN43","Mumbai-Jvpd","Unit No. 2 Block ‘B’","Gulmohar Cross Road No.9 Jvpd Scheme","Jvpd Andheri West","Mumbai ","Maharashtra",400049,"022-26706286","-",true,"-","utijvpdufc@Kfintech.com","open"]
["-","UFC","KL23","Mumbai-Kalyan","Ground Floor Jasraj Commercial Complex","Valli Peer Chitroda Nagar","Station Road Kalyan(West)","Kalyan ","Maharashtra",421301,"0251-6458242","-",true,"-","utikalyanufc@Kfintech.com","open"]
["-","UFC","BB02","Mumbai-Lotuscourt","Lotus Court Building","196 Jamshedji Tata Road","Backbay Reclamation","Mumbai ","Maharashtra",400020,"022-66235319","022-22876024 ",true,"-","utilotuscourtufc@Kfintech.com","open"]
["-","UFC","ML02","Mumbai-Marol","Plot No.12 Road No.9 ","Behind Tunga Paradise Hotel Midc ","Marol Andheri (E)","Mumbai ","Maharashtra",400093,"022-28303920","-",true,"-","utimarolufc@Kfintech.com","open"]
["-","UFC","PW22","Mumbai-Powai","G-5 Ground Floor","CETTM (Centre for Excellence in Telecom Technology & Management)","MTNL Main Building Technology Street Hiranandani Gardens Powai ","Mumbai ","Maharashtra",400076,"022-25700810","-",true,"-","utipowaiufc@Kfintech.com","open"]
["-","UFC","TH44","Mumbai-Thane","101/102, Ishkrupa","Ram Maruti Road, Opp. New English School","Naupada","Thane","Maharashtra",400602,"(022) 25332409/15","-",true,"-","utithaneufc@Kfintech.com","open"]
["-","UFC","VA45","Mumbai-Vashi","Shop No 8 & 8A Ground Floor Vardhman Chambers","Plot No 84 Sector 17","Behind AXIS Bank Ltd Vashi","Navi Mumbai","Maharashtra",400705,"022-27827217","-",true,"-","utivashiufc@Kfintech.com","open"]
["-","UFC","PU18","Pune","Ground Floor, 'Shubhadra Bhavan","Apte Road","Opposite Ramee Grand Hotel","Pune","Maharashthra",411004,"(020) 25521052/53/54/55/63,25521060","020-25665068 ",true,"-","utipuneufc@Kfintech.com","open"]
["-","UFC","CN24","Pune-Chinchwad","City Pride 1St Floor Plot No92/C","D-Iii Block Mumbai-Pune Highway","Kalbhornagar Chinchwad ","Pune","Maharashtra",411019,"020-46700129","020-27455387",true,"-","utichinchwadufc@Kfintech.com","open"]
["-","BDA","SA84","Sangali","Indira Residency","C S No. 305 Kotnis Path","Near S T Stand","Sangli","Maharashtra",416416,"0233 2339432","-",true,"-","mfssangalicr@kfintech.com","open"]
["Shri. Deepak V Khandke ","BDA","ST21","Satara","509 B/1/2 Sadar Bazar Sh. 6","Generations Near Collector OfficePowai Naka","Opp Radhika Narsing Home","Satara","Maharashtra",415001,"02162 235715","-",true,"-","mfssataracr@kfintech.com","open"]
["-","UFC","VR43","Virar","UTI Financial Center","Shop No. 2 &3 Ground Floor Sheetal Nagar Building No.4 281/2 Raja","Chhatrapati Shivaji Road Near LIC Home Finance OfficeAgashi Road","Virar West","Maharashthra",401303,"0250 – 251 5848","-",true,"2019-09-30","Kfpl.utivirarufc@Kfintech.com","open"]
["Shri. Kunal Sood","OPA","HO15","Hoshiarpur","Unit # SF-6,The Mall Complex","2nd Floor , Opposite Kapila Hospital","Sutheri Road","Hoshiarpur","Punjab",{"$f":"VLOOKUP(Table1[[#This Row],[Location]],'[1]MFS Add.List'!$D$1:$Q$178,14,0)","v":146001},"01882-500325","-",true,"-","mfshoshiarpur@Kfintech.com","Open"]
["-","UFC","AJ98","Ajmer","1st Floor, Udai JyotI","India Motor Circle","Kutchery Road","Ajmer","Rajasthan",305001,"(0145) 2423948/2423974","-",true,"-","mfsajmer@Kfintech.com","open"]
["66","UFC","AL01","Alwar","1. Jai Complex","Above Axis Bank","Road No. 2","Alwar","Rajasthan",301001,"0144-2702436","-",true,"-","utialwarufc@Kfintech.com","open"]
["-","UFC","AM55","Amritsar","Sco-34Distt Shopping Complex","B-BlockRanjit Avenue","Above Yo China","Amritsar","Punjab",143001,"0183-5015799","0183-2505841",true,"-","utiamritsarufc@Kfintech.com","open"]
["-","UFC","BT01","Bhatinda","MCB Z-3/032281st Floor","Above Punjab National Bank Tinkoni Chowk","Goniana Road","Bhatinda","Punjab",151001,"0164-2236650","-",true,"-","utibhatindaufc@Kfintech.com","open"]
["76","UFC","BH01","Bhilwara","B-6 Ground Floor S. K. Plaza","Pur Road","Bhilwara","Bhilwara","Rajasthan",311001,"01482-241362","-",true,"-","utibhilwaraufc@Kfintech.com ","open"]
["77","UFC","BK01","Bikaner","First FloorGupta Complex","Opp. Chhapan Bhog","Rani Bazar","Bikaner","Rajasthan",334001,"0151-2540290","-",true,"-","utibikanerufc@Kfintech.com","open"]
["-","UFC","CH25","Chandigarh","SCO No. 2907-2908","UTI Financial Centre","Sector 22-C","Chandigarh","Union Territory",160022,"0172-5087663","-",true,"-","utichandigarhufc@Kfintech.com","open"]
["-","UFC","JA13","Jaipur","Vasanti 1st Floor, Plot No 61-A","Dhuleswar Garden, Sardar Patel Mrag","C' Scheme","Jaipur","Rajasthan",302001,"(0141) 4004941/43/44/45/46","-",true,"-","utijaipurufc@Kfintech.com","open"]
["-","UFC","JL72","Jalandhar","No.32-33 1st Floor City Square Building","Civil Lines","-","Jalandhar","Punjab",144001,"0181-2232475/76","-",true,"-","utijalandharufc@Kfintech.com","open"]
["-","UFC","JK10","Jammu","Gupta Tower CB-13","2nd Floor","Rail Head Complex","Jammu","Jammu & Kashmir",180004,"(0191) 247 0627","-",true,"-","utijammuufc@Kfintech.com","open"]
["-","UFC","JO97","Jodhpur","Kalpataru Shopping Centre","Shastri Nagar","Near Ashapurna Mall","Jodhpur ","Rajasthan",342003,"0291-2771092 ","-",true,"-","utijodhpurufc@Kfintech.com","open"]
["Shri. Harbilas Gupta ","OPA","KA21","Karnal","18/369Char Chaman","Kunjpura Road","Behind Miglani Hospital","Karnal","Haryana",{"$f":"VLOOKUP(Table1[[#This Row],[Location]],'[1]MFS Add.List'!$D$1:$Q$178,14,0)","v":132001},"0184-2252524","-",true,"-","mfskarnal@Kfintech.com","Open"]
["-","UFC","KO74","Kota","Plot No.1","Sunder Arcade ","Aerodome Circle ","Kota","Rajasthan",324007,"0744-5100070 ","-",true,"-","utikotaufc@Kfintech.com","open"]
["-","UFC","LD23","Ludhiana","Ground Floor ","S C O 28 ","Feroze Gandhi Market ","Ludhiana","Punjab",141001,"0161-4648753 ","-",true,"-","utiludhianaufc@Kfintech.com","open"]
["-","OPA","DL09","New Delhi","305 New Delhi House ","27 Barakhamba Road ","-","New Delhi ","New Delhi ",{"$f":"VLOOKUP(Table1[[#This Row],[Location]],'[1]MFS Add.List'!$D$1:$Q$178,14,0)","v":110001},"011- 43681700 ","011-43681710",true,"-","delhimfd@Kfintech.com","Open"]
["-","UFC","JP01","New Delhi-Janakpuri","Bldg No.4 ","1St Floor B-1 Community Centre; ","B- Block Janakpuri","New Delhi","New Delhi ",110058,"011-46151751","-",true,"-","utijanakpuriufc@Kfintech.com","open"]
["-","UFC","JB09","New Delhi-Jeevan Bharti","101 Kailash Building","26 K. G. Marg","Connaught Place","New Delhi ","New Delhi ",110001,"(011) 66178861/8862/8866/66178867","-",true,"-","utijeevanbhartiufc@Kfintech.com","open"]
["-","UFC","NP17","New Delhi-Nehru Place","G-7 Hemkunt Tower(Modi Tower)","98- Nehru Place"," Near Paras Cinema","New Delhi","New Delhi ",110019,8826308500,"-",true,"-","utinehruplaceufc@Kfintech.com","open"]
["-","UFC","PT16","New Delhi-Pitampura","110-111, First Floor","P P Tower","Netaji Subhash Place","New Delhi","New Delhi ",110034,"8375071679/011-27351001-04 ","-",true,"-","utipitampuraufc@Kfintech.com","open"]
["-","UFC","PV15","New Delhi-Preet Vihar","Flat no.104-106, First Floor","Laxmi Deep Building,Laxmi Nagar District Centre","Laxmi Nagar","New Delhi","New Delhi ",110092,"011- 42518272","-",true,"-","utipreetviharufc@Kfintech.com","open"]
["-","UFC","PT11","Patiala","SCO No 22","First Floor","New Leela Bhavan Market ","Patiala","Punjab",147001,"(0175) 5004661/2/3, 5017984","-",true,"-","utipatialaufc@Kfintech.com","open"]
["-","UFC","SK01","Sikar","1St Floor Bhaskar Heights","Near S K Hospital","Silver Jublee Road","Sikar","Rajasthan",332001,"(01572) 271043","-",true,"-","utisikarufc@Kfintech.com","open"]
["130","UFC","SI01","Sri Ganganagar","Shop No 4 Opp. Bihani Petrol Pump","Nh 15 Sriganganagar","Near Baba Ramdev Mandir","Rajasthan","Rajasthan",335001,"0154-2483177","-",true,"-","utisriganganagarufc@Kfintech.com","open"]
["-","UFC","UD98","Udaipur","Rtdc Building","Ground Floor","Hotel Kajri ","Shastri Circle Udaipur","Rajasthan",313001,"0294-2419334 ","-",true,"-","utiudaipurufc@Kfintech.com","open"]
["-","BDA","AB01","Abohar","House No-1187","Street Number-5","6Th Crossing","Abohar","Punjab",152116,9357007000,"-",true,"-","mfsaboharcr@kfintech.com","open"]
["Smt. Sunita Malla(Koul) ","BDA","SN85","Srinagar","2nd Floor Room No -10","Costodion Building Red Cross Road Maisuma","Srinagar","Jammu & Kashmir","Punjab",190001,8803421230,"-",true,"2014-08-13","mfsSrinagarcr@kfintech.com","open"]
["Shri. Parvesh Bansal                 ","BDA","KT23","Kaithal","Bussiness Development Associate, S.C.O.NO.333","1st Floor, Sector-20","Urban Estate","Kaithal ","Haryana",136027,1746298486,"-",true,"2015-09-10","kaithalcr@Kfintech.com","open"]
["Shri. Hari Paul Sharma  ","OPA","MO20","MOGA","1St FloorDutt Road","Mandir Wali Gali","Civil Lines Barat Ghar ","Moga","Punjab",{"$f":"VLOOKUP(Table1[[#This Row],[Location]],'[1]MFS Add.List'!$D$1:$Q$178,14,0)","v":142001},"01636 - 230792","-",true,"2017-07-21","mfsmoga@Kfintech.com","Open"]
["-","OPA","PK32","Pathankot","2nd Floor Sahni Arcade Complex","Adj.Indra colony Gate Railway Road","Pathankot","Pathankot","Punjab",{"$f":"VLOOKUP(Table1[[#This Row],[Location]],'[1]MFS Add.List'!$D$1:$Q$178,14,0)","v":145001},"0186-2254770","-",true,"2018-12-03","mfspathankot@Kfintech.com","Open"]
["-","BDA","GN01","Gangapur","98 Bharat Katla","Opposite Private Bus Stand","Gangapur City DistSawaimadhopur","Rajasthan","Rajasthan",322201,"07463-231945","-",true,"2019-10-23","Kfpl.gangapurcr@Kfintech.com ","open"]
["137","UFC","HA16","Haridwar","First Floor, Aashirwad Complex","Near Ahuja Petrol Pump","Opp Khanna Nagar, Jwalapur","Haridwar","Uttaranchal",249401,"(01334) 221177 ","-",true,"2013-03-14","utiharidwarufc@kfintech.com","open"]
["107","UFC","MH23","Mehsana","1st Floor, A One Complex","Corporate Office, Highway Mehsana  ","Near Umiya Shopping Centre, Opp. Mehsana Urban Co-operative Bank,","Mehsana","Gujarat",384002,"(0276) 2230180","-",true,"2018-06-18","kfpl.utimehsanaufc@kfintech.com","open"]
["-","BDA","RG01","Raghunathganj","Municipal market complex ","Fultala post","Dist MURSHIDABAD","Raghunathganj","West Bengal",742225,"03483-266720","-",true,"2021-03-19","RaghunathganjOPA@kfintech.com","open"]
["-","UFC","WF04","WHITEFIELD","F-106, First Floor","Regent Prime No. 48-50","Whitefield main road,Whitefield","Bangalore","Karnataka",560066,"080-42012786","-",true,"-","utiwhitefieldufc@kfintech.com","open"]
["122","UFC","SR78","SAHARANPUR","SHOP NO-4, UPPER GROUND FLOOR","AVAS VIKAS MARKET","DELHI ROAD","SAHARANPUR","New Delhi ",247001,9307986410,"-",true,"-","uti.saharanpurufc@kfintech.com","open"]
["-","UFC","HC34","Hitechcity","Regency Classic, Second Floor, Plot No 58","Jayabheri Enclave, Gachibowli","Above Punjab National Bank Near Radisson Blu Hotel","Hyderabad","Telangana",500032,"040-29990658","-",true,"-"," ","open"]

{"sheet":"KFintech ISC","index":2,"n_rows":198,"n_cols":10,"rows_kept":198,"cut":false,"hidden":true,"merged":[]}
["S.No","Branch Type","Region","Branch Name","State","Zone Status","Consolidated Current Addrees","Landline#"," Branch Email","Open Status as of 28 Aug'20"]
[1,"MFS","Bangalore","Bangalore","Karnataka","Red Zone","KFin Technologies Pvt. Ltd,No 35,Puttanna Road,Basavanagudi,Bangalore 560004","080-26602852","bangaloremfd@Kfintech.com","Open"]
[2,"MFS","Bangalore","Belgaum","Karnataka","Red Zone","KFin Technologies Pvt. Ltd,Premises No.101, CTS NO.1893,Shree Guru Darshani Tower,Anandwadi, Hindwadi,Belgaum  590011","0831 2402544","mfsbelgaum@Kfintech.com","Open"]
[3,"MFS","Bangalore","Bellary","Telangana","Orange Zone","KFin Technologies Pvt. Ltd,Shree Gayathri Towers #4,1st Floor K.H.B.Colony,Gopalaswamy Mudaliar Road,Gandhi Nagar-Bellary 583103","08392 – 254750 ","mfsbellary@Kfintech.com ","Open"]
[4,"MFS","Bangalore","Davangere","Karnataka","Red Zone","KFin Technologies Pvt. Ltd,D.No 162/6 , 1st Floor, 3rd Main,P J Extension,Davangere taluk, Davangere Manda,Davangere 577002","0819-2258714","mfsdavangere@Kfintech.com","Open"]
[5,"MFS","Bangalore","Dharwad","Karnataka","Red Zone","KFin Technologies Pvt. Ltd,ADINATH COMPLEX,BESIDE KAMAL AUTOMOBILES, BHOOVI GALLI,OPP OLD LAXMI TALKIES, P B ROAD,Dharwad 580001","0836- 2744207","mfsdharwad@Kfintech.com","Open"]
[6,"MFS","Bangalore","Gulbarga","Karnataka","Red Zone","KFin Technologies Pvt. Ltd,H NO 2-231,KRISHNA COMPLEX, 2ND FLOOR Opp.,Opp. Municipal corporation Office,Jagat, Station Main Road, KALABURAGI,Gulbarga 585105","08472 252503","mfsgulbarga@Kfintech.com","Open"]
[7,"MFS","Bangalore","Hassan","Karnataka","Red Zone","KFin Technologies Pvt. Ltd,SAS NO: 490, HEMADRI ARCADE,2ND MAIN ROAD,SALGAME ROAD NEAR BRAHMINS BOYS HOSTEL,Hassan  573201","08172 262065","mfshassan@Kfintech.com","Open"]
[8,"MFS","Bangalore","Hubli","Karnataka","Orange Zone","KFin Technologies Pvt. Ltd,R R MAHALAXMI MANSION,ABOVE INDUSIND BANK, 2ND FLOOR,DESAI CROSS, PINTO ROAD,Hubballi 580029","0836-2252444","mfshubli@Kfintech.com","Open"]
[9,"MFS","Bangalore","Mangalore","Karnataka","Orange Zone","KFin Technologies Pvt. Ltd,Mahendra Arcade Opp Court Road,Karangal Padi,-,Mangalore 575003","0824-2496289","mangaloremfd@Kfintech.com","Open"]
[10,"MFS","Bangalore","Margao","Goa","Green Zone","KFin Technologies Pvt. Ltd,2Nd Floor ,Dalal Commercial Complex,Pajifond,Margao  403601","0832-2731823 ","mfsmargoa@Kfintech.com","Open"]
[11,"MFS","Bangalore","Mysore","Karnataka","Green Zone","KFin Technologies Pvt. Ltd,L-350Silver Tower,Ashoka Road,Opp.Clock Tower ,Mysore  570001","0821-2438006","mfsmysore@Kfintech.com","Open"]
[12,"MFS","Bangalore","Panjim","Goa","Green Zone","KFin Technologies Pvt. Ltd,H. No: T-9, T-10, Affran plaza,3rd Floor,Near Don Bosco High School,Panjim 403001","0832-2426874","panjimmfd@Kfintech.com","Open"]
[13,"MFS","Bangalore","Shimoga","Karnataka","Red Zone","KFin Technologies Pvt. Ltd,JAYARAMA NILAYA,2ND CORSS,MISSION COMPOUND,Shimoga 577201","08182-228799","mfsshimoga@Kfintech.com","Open"]
[14,"MFS","Baroda","Ahmedabad","Gujarat","Red Zone","KFin Technologies Pvt. Ltd,Office No. 401, on 4th Floor,ABC-I, Off. C.G. Road,-,Ahmedabad 380009",9081903021,"ahmedabadmfd@Kfintech.com","Open"]
[15,"MFS","Baroda","Anand","Gujarat","Red Zone","KFin Technologies Pvt. Ltd,B-42 Vaibhav Commercial Center,Nr Tvs Down Town Shrow Room  ,Grid Char Rasta  ,Anand  380001",9081903038,"mfsanand@Kfintech.com","Open"]
[16,"MFS","Baroda","Baroda","Gujarat","Red Zone","KFin Technologies Pvt. Ltd,203 Corner point,Jetalpur Road,Baroda Gujarat,Baroda 390007","0265-2353506","barodamfd@Kfintech.com","Open"]
[17,"MFS","Baroda","Bharuch","Gujarat","Orange Zone","KFin Technologies Pvt. Ltd,123 Nexus business Hub,Near Gangotri Hotel,B/s Rajeshwari Petroleum,Makampur Road,Bharuch 392001",9081903042,"mfsbharuch@Kfintech.com","Open"]
[18,"MFS","Baroda","Bhavnagar","Gujarat","Red Zone","KFin Technologies Pvt. Ltd,303 STERLING POINT ,WAGHAWADI ROAD ,-,Bhavnagar 364001","278-3003149","mfsbhavnagar@Kfintech.com","Open"]
[19,"MFS","Baroda","Gandhidham","Gujarat","Red Zone","KFin Technologies Pvt. Ltd,Shop # 12 Shree Ambica Arcade Plot # 300,Ward 12. Opp. CG High School ,Near HDFC Bank,Gandhidham 370201",9081903027,"mfsgandhidham@Kfintech.com","Open"]
[20,"MFS","Baroda","Gandhinagar","Gujarat","Red Zone","KFin Technologies Pvt. Ltd,123 First Floor,Megh Malhar Complex,Opp. Vijay Petrol Pump Sector - 11,Gandhinagar 382011","079 23244955","mfsgandhinagar@Kfintech.com","Open"]
[21,"MFS","Baroda","Jamnagar","Gujarat","Orange Zone","KFin Technologies Pvt. Ltd,131 Madhav Plazza, ,Opp Sbi Bank,Nr Lal Bunglow,Jamnagar 361008","0288 3065810","mfsjamnagar@Kfintech.com","Open"]
[22,"MFS","Baroda","Junagadh","Gujarat","Green Zone","KFin Technologies Pvt. Ltd,124-125 Punit Shopping Center,M.G Road,Ranavav Chowk,Junagadh 362001","0285-2652220","mfsjunagadh@Kfintech.com","Open"]
[23,"MFS","Baroda","Mehsana","Gujarat","Orange Zone","KFin Technologies Pvt. Ltd,FF-21 Someshwar Shopping Mall ,Modhera Char Rasta,-,Mehsana 384002","02762-242950","mfsmehsana@Kfintech.com","Open"]
[24,"MFS","Baroda","Nadiad","Gujarat","Red Zone","KFin Technologies Pvt. Ltd,311-3rd Floor City Center ,Near Paras Circle,-,Nadiad 387001","0268-2563245","mfsnadiad@Kfintech.com","Open"]
[25,"MFS","Baroda","Navsari","Gujarat","Orange Zone","KFin Technologies Pvt. Ltd,103  1ST FLOORE LANDMARK MALL,NEAR SAYAJI LIBRARY ,Navsari Gujarat,Navsari 396445",9081903040,"mfsnavsari@Kfintech.com","Open"]
[26,"MFS","Baroda","Rajkot","Gujarat","Orange Zone","KFin Technologies Pvt. Ltd,302 Metro Plaza ,Near Moti Tanki Chowk,Rajkot,Rajkot Gujarat 360001",9081903025,"rajkotmfd@Kfintech.com","Open"]
[27,"MFS","Baroda","Surat","Gujarat","Red Zone","KFin Technologies Pvt. Ltd,Office no: -516 5th Floor Empire State building ,Near Udhna Darwaja,Ring Road,Surat 395002",9081903041,"suratmf@Kfintech.com","Open"]
[28,"MFS","Baroda","Valsad","Gujarat","Orange Zone","KFin Technologies Pvt. Ltd,406 Dreamland Arcade,Opp Jade Blue,Tithal Road,Valsad 396001","02632-258481","mfsvalsad@Kfintech.com","Open"]
[29,"MFS","Baroda","Vapi","Gujarat","Orange Zone","KFin Technologies Pvt. Ltd,A-8  FIRST FLOOR SOLITAIRE BUSINESS CENTRE,OPP DCB BANK  GIDC CHAR RASTA,SILVASSA ROAD,Vapi 396191",9081903028,"mfsvapi@Kfintech.com","Open"]
[30,"MFS","Chennai","Chennai","Tamil Nadu","Red Zone","KFin Technologies Pvt. Ltd,F-11 Akshaya Plaza 1St Floor,108 Adhithanar Salai,Egmore Opp To Chief Metropolitan Court,Chennai 600002","044-42028512","chennaimfd@Kfintech.com","Close"]
[31,"Collection Center","Chennai","T Nagar/Nungambakkam","Tamilnadu","Green Zone","KFin Technologies Pvt. Ltd,No 23 | Cathedral Garden Road,Cathedral Garden Road,Nungambakkam,Chennai,600 034","         044 - 28309100","chennaimfd@Kfintech.com","Open"]
[32,"MFS","Cochin","Alleppy","Kerala","Orange Zone","KFin Technologies Pvt. Ltd,1st Floor Jp Towers,Mullackal,Ksrtc Bus Stand,Alleppy 688011","0477 2263055","mfsalleppy@Kfintech.com","Open"]
[33,"MFS","Cochin","Calicut","Kerala","Orange Zone","KFin Technologies Pvt. Ltd,Second Floor,Manimuriyil Centre, Bank Road,,Kasaba Village,Calicut 673001","0495-4022480","mfscalicut@Kfintech.com","Open"]
[34,"MFS","Cochin","Cochin","Kerala","Green Zone","KFin Technologies Pvt. Ltd,Ali Arcade 1St FloorKizhavana Road,Panampilly Nagar,Near Atlantis Junction,Ernakualm 682036","0484 - 4025059","cochinmfd@Kfintech.com","Open"]
[35,"MFS","Cochin","Kannur","Kerala","Red Zone","KFin Technologies Pvt. Ltd,2ND FLOOR,GLOBAL VILLAGE,BANK ROAD,Kannur 670001","0497-2764190","mfskannur@Kfintech.com","Open"]
[36,"MFS","Cochin","Kollam","Kerala","Orange Zone","KFin Technologies Pvt. Ltd,GROUND FLOORA NARAYANAN SHOPPING COMPLEX,KAUSTHUBHSREE BLOCK,Kadapakada,Kollam 691008","474-2747055","mfskollam@Kfintech.com","Open"]
[37,"MFS","Cochin","Kottayam","Kerala","Red Zone","KFin Technologies Pvt. Ltd,1St Floor Csiascension Square,Railway Station Road,Collectorate P O,Kottayam 686002","0481-2300868/2302420","mfskottayam@Kfintech.com","Open"]
[38,"MFS","Cochin","Malappuram","Kerala","Orange Zone","KFin Technologies Pvt. Ltd,2nd Floor,Peekays Arcade,Down Hill,Malappuram 676505","0483-2731480","mfsmalappuram@Kfintech.com","Open"]
[39,"MFS","Cochin","Palghat","Kerala","Orange Zone","KFin Technologies Pvt. Ltd,No: 20 & 21 ,Metro Complex H.P.O.Road Palakkad,H.P.O.Road,Palakkad 678001",9895968533,"mfspalghat@Kfintech.com","Open"]
[40,"MFS","Cochin","Tiruvalla","Kerala","Orange Zone","KFin Technologies Pvt. Ltd,2Nd FloorErinjery Complex,Ramanchira,Opp Axis Bank,Thiruvalla 689107","04862-211209","mfstiruvalla@Kfintech.com","Open"]
[41,"MFS","Cochin","Trichur/Thrissur","Kerala","Orange Zone","KFin Technologies Pvt. Ltd,4TH FLOOR, CROWN TOWER,SHAKTHAN NAGAR,OPP. HEAD POST OFFICE,Thrissur 680001","0487- 6999987","mfstrichur@Kfintech.com","Open"]
[42,"MFS","Cochin","Trivandrum","Kerala","Orange Zone","KFin Technologies Pvt. Ltd,MARVEL TOWER, 1ST FLOOR,URA-42 STATUE,(UPPALAM ROAD RESIDENCE ASSOCIATION) ,Trivandrum 695010","0471 - 2725728","mfstrivandrum@Kfintech.com","Open"]
[43,"MFS","Coimbatore","Coimbatore","Tamil Nadu","Green Zone","KFin Technologies Pvt. Ltd,3rd Floor Jaya Enclave,1057 Avinashi Road,-,Coimbatore 641018","0422 - 4388011","mfscoimbatore@Kfintech.com","Open"]
[44,"MFS","Coimbatore","Dindigul","Tamil Nadu","Red Zone","KFin Technologies Pvt. Ltd,NO 59B New Pensioner street,Palani Road,,Opp Gomathi Lodge,Dindigul 624001","0451- 2436177","mfsdindigul@Kfintech.com","Open"]
[45,"MFS","Coimbatore","Erode","Tamil Nadu","Red Zone","KFin Technologies Pvt. Ltd,Address No 38/1 Ground Floor,Sathy Road,(VCTV Main Road),Sorna Krishna Complex,Erode 638003","0424-4021212","mfserode@Kfintech.com","Open"]
[46,"MFS","Coimbatore","Karur","Tamil Nadu","Red Zone","KFin Technologies Pvt. Ltd,No 88/11, BB plaza,NRMP street,K S Mess Back side,Karur 639002","04324-241755","mfskarur@Kfintech.com","Open"]
[47,"MFS","Coimbatore","Madurai","Tamil Nadu","Red Zone","KFin Technologies Pvt. Ltd,No. G-16/17,AR Plaza, 1st floor,North Veli Street,Madurai 625001","0452-2605856","mfsmadurai@Kfintech.com","Open"]
[48,"MFS","Coimbatore","Nagerkoil","Tamil Nadu","Orange Zone","KFin Technologies Pvt. Ltd,HNO 45 ,1st Floor,East Car Street ,Nagercoil 629001","04652 - 233552","mfsnagarkoil@Kfintech.com","Open"]
[49,"MFS","Coimbatore","Pollachi","Tamil Nadu","Orange Zone","KFin Technologies Pvt. Ltd,1st floor,MKG complex,Opp to Gowri Shankar Hotel,-,Pollachi 642001","04259- 235111","mfspollachi@Kfintech.com","Open"]
[50,"MFS","Coimbatore","Pondicherry","Pondicherry ","Orange Zone","KFin Technologies Pvt. Ltd,No 122(10b),Muthumariamman koil street,-,Pondicherry 605001","0413-4300710","mfspondy@Kfintech.com","Open"]
[51,"MFS","Coimbatore","Salem","Tamil Nadu","Orange Zone","KFin Technologies Pvt. Ltd,NO 3/250 ,Pondicherry - 605001,6th CrossPerumal kovil back side Fairland's,Salem 636016","0427-4020300","mfssalem@Kfintech.com","Open"]
[52,"MFS","Coimbatore","Thanjavur","Tamil Nadu","Orange Zone","KFin Technologies Pvt. Ltd,No 1, Basement,Nallaiyah Complex,Srinivasam pillai road,Thanjavur 613001","04362-275415","mfsthanjavur@Kfintech.com","Open"]
[53,"MFS","Coimbatore","Tirunelveli","Tamil Nadu","Red Zone","KFin Technologies Pvt. Ltd,55/18 Jeney Building,S N Road,Near Aravind Eye Hospital,Tirunelveli 627001","0462-4001416","mfstirunelveli@Kfintech.com","Open"]
[54,"MFS","Coimbatore","Tirupur","Tamil Nadu","Red Zone","KFin Technologies Pvt. Ltd,No 669A,Kamaraj Road,,Near old collector office,,Tirupur 641604","0421-2214221","mfstirupur@Kfintech.com","Close"]
[55,"MFS","Coimbatore","Trichy","Tamil Nadu","Orange Zone","KFin Technologies Pvt. Ltd,No 23C/1 E V R road, Near Vekkaliamman Kalyana Mandapam,Putthur,-,Trichy 620017","0431-4020227","mfstrichy@Kfintech.com","Open"]
[56,"MFS","Coimbatore","Tuticorin","Tamil Nadu","Red Zone","KFin Technologies Pvt. Ltd,4 - B A34 - A37,Mangalmal Mani Nagar,Opp. Rajaji Park Palayamkottai Road,Tuticorin 628003","0461-2334603","mfstuticorin@Kfintech.com","Open"]
[57,"MFS","Coimbatore","Vellore","Tamil Nadu","Containmment","KFin Technologies Pvt. Ltd,No 2/19,1st floor,Vellore city centre,Anna salai,Vellore 632001","0416-41603806","mfsvellore@Kfintech.com","Open"]
[58,"MFS","Guwahati","Agartala","Tripura","Green Zone","KFin Technologies Pvt. Ltd,OLS RMS CHOWMUHANI,MANTRI BARI ROAD1ST FLOOR NEAR TRAFFIC POINT,TRIPURA WEST,Agartala 799001","0381-2317519","mfsagartala@Kfintech.com","Open"]
[59,"MFS","Guwahati","Guwahati","Assam","Green Zone","KFin Technologies Pvt. Ltd,1st Floor Bajrangbali Building,Near Bora Service Station GS Road,-,Guwahati 781007",8811036746,"mfsguwahati@Kfintech.com","Open"]
[60,"MFS","Guwahati","Shillong","Meghalaya","Orange Zone","KFin Technologies Pvt. Ltd,Annex Mani Bhawan ,Lower Thana Road ,Near R K M Lp School ,Shillong 793001","0364 - 2506106","mfsshillong@Kfintech.com","Open"]
[61,"MFS","Guwahati","Silchar","Assam","Green Zone","KFin Technologies Pvt. Ltd,N.N. Dutta Road,Chowchakra Complex,Premtala,Silchar 788001",3842261714,"mfssilchar@Kfintech.com","Close"]
[62,"MFS","Hyderabad","Ananthapur","Andhra Pradesh","Containmment","KFin Technologies Pvt. Ltd,Plot No: 12-313,,Balaji Towers, Suryanagar,Ananthapur Village,Anantapur 515001","08554-244449","mfsananthapur@Kfintech.com","Open"]
[63,"MFS","Hyderabad","Eluru","Andhra Pradesh","Orange Zone","KFin Technologies Pvt. Ltd,DNO-23A-7-72/73K K S PLAZA MUNUKUTLA VARI STREET,OPP ANDHRA HOSPITALS,R R PETA,Eluru 534002","08812-227851 / 52 / 53 / 54","mfseluru@Kfintech.com","Open"]
[64,"MFS","Hyderabad","Guntur","Andhra Pradesh","Orange Zone","KFin Technologies Pvt. Ltd,2nd Shatter, 1st Floor,Hno. 6-14-48, 14/2 Lane,,Arundal Pet,Guntur 522002","0863-2339094","mfsguntur@Kfintech.com","Open"]
[65,"MFS","Hyderabad","Hyderabad","Telangana","Orange Zone","KFin Technologies Pvt. Ltd,No:303, Vamsee Estates,Opp: Bigbazaar,Ameerpet,Hyderabad 500016","040-44857874 / 75 / 76","mfshyderabad@Kfintech.com","Open"]
[66,"MFS","Hyderabad","Karimnagar","Telangana","Red Zone","KFin Technologies Pvt. Ltd,2nd ShutterHNo. 7-2-607 Sri Matha ,Complex Mankammathota ,-,Karimnagar 505001","0878-2244773","mfskarimnagar@Kfintech.com","Open"]
[67,"MFS","Hyderabad","Kurnool","Andhra Pradesh","Containmment","KFin Technologies Pvt. Ltd,Shop No:47,2nd Floor,S komda Shoping mall,Kurnool 518001","08518-228550","mfskurnool@Kfintech.com","Open"]
[68,"MFS","Hyderabad","Nanded","Maharashthra","Red Zone","KFin Technologies Pvt. Ltd,Shop No.4 ,Santakripa Market G G Road,Opp.Bank Of India,Nanded 431601","02462-237885","mfsnanded@Kfintech.com","Open"]
[69,"MFS","Hyderabad","Nellore","Andhra Pradesh","Orange Zone","KFin Technologies Pvt. Ltd,D No:16-5-66 Ramarao Complex, No:2 Shop No:305,3rd Floor  ,Nagula Mitta Rodad,Opp Bank of baroda,Nellore 524001","0861 2349940","mfsnellore@Kfintech.com","Open"]
[70,"MFS","Hyderabad","Rajahmundry","Andhra Pradesh","Orange Zone","KFin Technologies Pvt. Ltd,D.No.6-1-4Rangachary Street,T.Nagar, Near Axis Bank Street,Rajahmundry 533101","0883-2434468/70","mfsrajahmundry@Kfintech.com","Close"]
[71,"MFS","Hyderabad","Solapur","Maharashthra","Orange Zone","KFin Technologies Pvt. Ltd,Block No 06,Vaman Nagar Opp D-Mart,Jule Solapur,Solapur 413004","0217-2300021 / 2300318","mfssolapur@Kfintech.com","Open"]
[72,"MFS","Hyderabad","Srikakulam","Andhra Pradesh","Orange Zone","KFin Technologies Pvt. Ltd,D No 4-4-97 First Floor Behind Sri Vijayaganapathi Temple,Pedda relli veedhi ,Palakonda Road ,Srikakulam 532001",8942229925,"mfssrikakulam@Kfintech.com","Open"]
[73,"MFS","Hyderabad","Tirupathi","Andhra Pradesh","Orange Zone","KFin Technologies Pvt. Ltd,H.No:10-13-425,1st Floor  Tilak Road ,Opp: Sridevi Complex  ,Tirupathi 517501","9885995544 / 0877-2255797","mfstirupathi@Kfintech.com","Open"]
[74,"MFS","Hyderabad","Vijayanagaram","Andhra Pradesh","Orange Zone","KFin Technologies Pvt. Ltd,D No : 20-20-29, 1st Floor,Surya Nagar, Kalavapuvvu Meda,Near Ayodhya Stadium, Dharmapuri Road,Vizianagaram 535002","08922-236965","mfsvijayanagaram@Kfintech.com","Open"]
[75,"MFS","Hyderabad","Vijayawada","Andhra Pradesh","Green Zone","KFin Technologies Pvt. Ltd,HNo26-23, 1st Floor,Sundarammastreet,GandhiNagar, Krishna,Vijayawada 520010","0866-6604032/39/40","vijayawadamfd@Kfintech.com","Open"]
[76,"MFS","Hyderabad","Visakhapatnam","Andhra Pradesh","Containmment","KFin Technologies Pvt. Ltd,DNO : 48-10-40, GROUND FLOOR, SURYA RATNA ARCADE, SRINAGAR, OPP ROADTO LALITHA JEWELLER SHOWROOM,BESIDE  TAJ HOTEL LADGE,Visakhapatnam 530016","0891-2714125","vizagmfd@Kfintech.com","Open"]
[77,"MFS","Hyderabad","Warangal","Telangana","Orange Zone","KFin Technologies Pvt. Ltd,Shop No22 , ,Ground Floor Warangal City Center,15-1-237,Mulugu Road Junction,Warangal 506002","0870-2441513","mfswarangal@Kfintech.com","Open"]
[78,"MFS","Hyderabad","Khammam","Telangana","Orange Zone","KFin Technologies Pvt. Ltd,11-4-3/3 Shop No. S-9,1st floor,Srivenkata Sairam Arcade,Old CPI Office Near PriyaDarshini CollegeNehru Nagar ,KHAMMAM 507002",8008865802,"mfskhammam@Kfintech.com","Open"]
[79,"Collection Center","Hyderabad","Hyderabad(Gachibowli)","Telangana","Orange Zone","KFintech Pvt.Ltd,Selenium Plot No: 31 & 32,Tower B Survey No.115/22 115/24 115/25,Financial District Gachibowli Nanakramguda Serilimgampally Mandal,Hyderabad,500032","040-33215122","Aqbal.Anis@Kfintech.com","Open"]
[80,"MFS","Indore","Akola","Maharashthra","Red Zone","KFin Technologies Pvt. Ltd,Yamuna Tarang Complex Shop No 30,Ground Floor N.H. No- 06 Murtizapur Road,Opp Radhakrishna Talkies,Akola 444004","0724-2451874","mfsakola@Kfintech.com","Open"]
[81,"MFS","Indore","Amaravathi","Maharashthra","Red Zone","KFin Technologies Pvt. Ltd,Shop No. 21 2nd Floor,Gulshan Tower,Near Panchsheel Talkies Jaistambh Square,Amaravathi 444601","0721 2569198","mfsamaravathi@Kfintech.com  ","Open"]
[82,"MFS","Indore","Aurangabad","Maharashthra","Red Zone","KFin Technologies Pvt. Ltd,Shop no B 38,Motiwala Trade Center,Nirala Bazar,Aurangabad 431001","0240-2343414","mfsaurangabad@Kfintech.com","Open"]
[83,"MFS","Indore","Bhopal","Madhya Pradesh","Red Zone","KFin Technologies Pvt. Ltd,Gurukripa Plaza, Plot No. 48A,Opposite City Hospital, zone-2,M P nagar,Bhopal 462011","0755-4092712,0755-4092715","bhopalmfs@Kfintech.com","Open"]
[84,"MFS","Indore","Dhule","Maharashthra","Red Zone","KFin Technologies Pvt. Ltd,Ground Floor Ideal Laundry Lane No 4,Khol Galli Near Muthoot Finance,Opp Bhavasar General Store,Dhule 424001","02562-282823","mfsdhule@Kfintech.com","Open"]
[85,"MFS","Indore","Indore","Madhya Pradesh","Red Zone","KFin Technologies Pvt. Ltd,101,Diamond Trade centre,-,Indore 452001","0731-4266828/4218902","mfsindore@Kfintech.com","Open"]
[86,"MFS","Indore","Jabalpur","Madhya Pradesh","Red Zone","KFin Technologies Pvt. Ltd,3Rd floor ,R.R. Tower.5 Lajpatkunj,near Tayabali petrol pump ,Jabalpur 482001","0761-4923301","mfsjabalpur@Kfintech.com","Open"]
[87,"MFS","Indore","Jalgaon","Maharashthra","Red Zone","KFin Technologies Pvt. Ltd,3rd floor,22 Yashodhah,Ring Road,Jalgaon 425001",9421521406,"mfsjalgaon@Kfintech.com","Open"]
[88,"MFS","Indore","Nagpur","Maharashthra","Red Zone","KFin Technologies Pvt. Ltd,Plot No. 2, Block No. B / 1 & 2 , Shree Apratment,Khare Town, Mata Mandir Road,Dharampeth,Nagpur 440010","0712-2533040","nagpurmfd@Kfintech.com","Open"]
[89,"MFS","Indore","Nasik","Maharashthra","Red Zone","KFin Technologies Pvt. Ltd,S-9 Second Floor,Suyojit Sankul,Sharanpur Road,Nasik 422002","0253-6608999","nasikmfs@Kfintech.com","Open"]
[90,"MFS","Indore","Ratlam","Madhya Pradesh","Green Zone","KFin Technologies Pvt. Ltd,1 Nagpal Bhawan  Free Ganj Road ,Do Batti ,Near Nokia Care ,Ratlam 457001","07412-320398","mfsratlam@Kfintech.com","Open"]
[91,"MFS","Indore","Sagar","Madhya Pradesh","Green Zone","KFin Technologies Pvt. Ltd,II floor Above shiva kanch mandir.,5 civil lines,Sagar,Sagar 470002","07582-402404","mfssagar@Kfintech.com","Open"]
[92,"MFS","Indore","Ujjain","Madhya Pradesh","Red Zone","KFin Technologies Pvt. Ltd,Heritage Shop No. 227,87 Vishvavidhyalaya Marg,Station Road,Near ICICI bank Above Vishal Megha Mart,Ujjain 456001","0734-4250007 / 08","mfsujjain@Kfintech.com","Open"]
[93,"MFS","Kolkata","Asansol","West Bengal","Orange Zone","KFin Technologies Pvt. Ltd,112/N G. T. ROAD BHANGA PACHIL,G.T Road Asansol Pin: 713 303; ,Paschim Bardhaman West Bengal,Asansol 713303","0341-2220077","mfsasansol@Kfintech.com","Open"]
[94,"MFS","Kolkata","Balasore","Orissa","Red Zone","KFin Technologies Pvt. Ltd,1-B. 1st Floor, Kalinga Hotel Lane,Baleshwar,Baleshwar Sadar,Balasore 756001","06782-260503","mfsbalasore@Kfintech.com","Open"]
[95,"MFS","Kolkata","Bankura","West Bengal","Green Zone","KFin Technologies Pvt. Ltd,Plot nos-  80/1/ANATUNCHATI MAHALLA 3rd floor,Ward no-24 Opposite P.C Chandra,Bankura town,Bankura 722101",9434480586,"mfsbankura@Kfintech.com","Open"]
[96,"MFS","Kolkata","Berhampur (Or)","Orissa","Red Zone","KFin Technologies Pvt. Ltd, Opp Divya Nandan Kalyan Mandap,3rd Lane Dharam Nagar,Near Lohiya Motor,Berhampur (Or) 760001","0680-2228106","mfsberhampur@Kfintech.com","Open"]
[97,"MFS","Kolkata","Bhilai","Chatisgarh","Orange Zone","KFin Technologies Pvt. Ltd,Office No.2, 1st Floor,Plot No. 9/6,Nehru Nagar [East],Bhilai 490020","0788-2289499 / 2295332","mfsbhilai@Kfintech.com","Open"]
[98,"MFS","Kolkata","Bhubaneswar","Orissa","Red Zone","KFin Technologies Pvt. Ltd,A/181  Back Side Of Shivam Honda Show Room,Saheed Nagar,-,Bhubaneswar 751007","0674-2548981","bhubaneswarmfd@Kfintech.com","Open"]
[99,"MFS","Kolkata","Bilaspur","Chatisgarh","Red Zone","KFin Technologies Pvt. Ltd,Shop.No.306,3rd Floor,ANANDAM PLAZA,Vyapar Vihar Main Road,Bilaspur 495001","07752-470070","mfsbilaspur@Kfintech.com","Open"]
[100,"MFS","Kolkata","Bokaro","Jharkhand","Orange Zone","KFin Technologies Pvt. Ltd,CITY CENTRE, PLOT NO. HE-07,SECTOR-IV,BOKARO STEEL CITY,Bokaro 827004",7542979444,"mfsbokaro@Kfintech.com","Open"]
[101,"MFS","Kolkata","Burdwan","West Bengal","Orange Zone","KFin Technologies Pvt. Ltd,Anima Bhavan 1st Floor Holding No.-42,Sreepally G. T. Road,West Bengal,Burdwan 713103","0342-2665140","mfsburdwan@Kfintech.com","Open"]
[102,"MFS","Kolkata","Chinsura","West Bengal","Orange Zone","KFin Technologies Pvt. Ltd,No : 96,PO: CHINSURAH,DOCTORS LANE,Chinsurah 712101","033-26810164","mfschinsura@Kfintech.com","Open"]
[103,"MFS","Kolkata","Cuttack","Orissa","Red Zone","KFin Technologies Pvt. Ltd,SHOP NO-45,2ND FLOOR,,NETAJI SUBAS BOSE ARCADE,,(BIG BAZAR BUILDING) ADJUSENT TO RELIANCE TRENDS,,DARGHA BAZAR,Cuttack 753001","0671-2203077","mfscuttack@Kfintech.com","Open"]
[104,"MFS","Kolkata","Dhanbad","Jharkhand","Orange Zone","KFin Technologies Pvt. Ltd,208 New Market 2Nd Floor,Bank More,-,Dhanbad 826001",9264445981,"mfsdhanbad@Kfintech.com","Open"]
[105,"MFS","Kolkata","Durgapur","West Bengal","Orange Zone","KFin Technologies Pvt. Ltd,MWAV-16 BENGAL AMBUJA,2ND FLOOR CITY CENTRE,Distt. BURDWAN Durgapur-16 ,Durgapur 713216","0343-6512111","mfsdurgapur@Kfintech.com","Open"]
[106,"MFS","Kolkata","Gaya","Bihar","Red Zone","KFin Technologies Pvt. Ltd,Property No. 711045129, Ground FloorHotel Skylark,Swaraipuri Road,-,Gaya 823001","0631-2220065","mfsgaya@Kfintech.com","Open"]
[107,"MFS","Kolkata","Jalpaiguri","West Bengal","Orange Zone","KFin Technologies Pvt. Ltd,D B C Road Opp Nirala Hotel,Opp Nirala Hotel,Opp Nirala Hotel,Jalpaiguri 735101","03561-222136","mfsjalpaiguri@Kfintech.com","Open"]
[108,"MFS","Kolkata","Jamshedpur","Jharkhand","Orange Zone","KFin Technologies Pvt. Ltd,Madhukunj, 3rd Floor ,Q Road, Sakchi,Bistupur, East Singhbhum,Jamshedpur 831001","0657-6655003/ 6655004/ 6655005/ 6655006/ 6655007","jamshedpurmfd@Kfintech.com","Open"]
[109,"MFS","Kolkata","Kharagpur","West Bengal","Orange Zone","KFin Technologies Pvt. Ltd,Holding No 254/220, SBI BUILDING,Malancha Road, Ward No.16, PO: Kharagpur, PS: Kharagpur,Dist: Paschim Medinipur,Kharagpur 721304",3222253380,"mfskharagpur@Kfintech.com","Open"]
[110,"MFS","Kolkata","Kolkata","West Bengal","Red Zone","KFin Technologies Pvt. Ltd,Apeejay House ( Beside Park Hotel ),C Block3rd Floor,15 Park Street ,Kolkata 700016","033 66285900","mfskolkata@Kfintech.com","Open"]
[111,"MFS","Kolkata","Malda","West Bengal","Red Zone","KFin Technologies Pvt. Ltd,RAM KRISHNA PALLY; GROUND FLOOR,ENGLISH BAZAR,-,Malda 732101","03512-223763","mfsmalda@Kfintech.com","Open"]
[112,"MFS","Kolkata","Patna","Bihar","Red Zone","KFin Technologies Pvt. Ltd,3A 3Rd Floor Anand Tower,Exhibition Road,Opp Icici Bank,Patna 800001","0612-4323066","mfspatna@Kfintech.com","Open"]
[113,"MFS","Kolkata","Raipur","Chatisgarh","Red Zone","KFin Technologies Pvt. Ltd,OFFICE NO S-13 SECOND FLOOR REHEJA TOWER,FAFADIH CHOWK,JAIL ROAD,Raipur 492001","0771-4912611","mfsraipur@Kfintech.com","Open"]
[114,"MFS","Kolkata","Ranchi","Jharkhand","Red Zone","KFin Technologies Pvt. Ltd,Room No 307 3Rd Floor ,Commerce Tower ,Beside Mahabir Tower ,Ranchi 834001","0651-2331320","mfsranchi@Kfintech.com","Open"]
[115,"MFS","Kolkata","Rourkela","Orissa","Containmment","KFin Technologies Pvt. Ltd,2nd Floor, Main Road,UDIT NAGAR,SUNDARGARH,Rourekla 769012","0661-2500005 ","mfsrourkela@Kfintech.com","Open"]
[116,"MFS","Kolkata","Sambalpur","Orissa","Orange Zone","KFin Technologies Pvt. Ltd,First Floor; Shop No. 219,SAHEJ PLAZA,Golebazar; Sambalpur,Sambalpur 768001","0663-2533437","mfssambalpur@Kfintech.com","Open"]
[117,"MFS","Kolkata","Siliguri","West Bengal","Red Zone","KFin Technologies Pvt. Ltd,Nanak Complex, 2nd Floor,Sevoke Road,-,Siliguri 734001","0353-2522579","mfssiliguri@Kfintech.com","Open"]
[118,"Collection Center","Kolkata","Dalhousie","West Bengal","Red Zone","KFin Technologies Pvt. Ltd,2Nd Floor Room no-226,R N Mukherjee Road,,Kolkata,700 001","033-24659263","kolkatamfd@Kfintech.com","Close"]
[119,"MFS","Lucknow","Agra","Uttar Pradesh","Red Zone","KFin Technologies Pvt. Ltd,House No. 17/2/4, 2nd Floor,Deepak Wasan Plaza,Behind Hotel Holiday INN,Sanjay Place,Agra 282002",7518801801,"mfsagra@Kfintech.com","Open"]
[120,"MFS","Lucknow","Aligarh","Uttar Pradesh","Red Zone","KFin Technologies Pvt. Ltd,Sebti Complex Centre Point,Sebti Complex Centre Point,-,Aligarh 202001",7518801802,"mfsaligarh@Kfintech.com","Open"]
[121,"MFS","Lucknow","Allahabad","Uttar Pradesh","Orange Zone","KFin Technologies Pvt. Ltd,Meena Bazar,2nd Floor 10 S.P. Marg Civil Lines,Subhash Chauraha, Prayagraj,Allahabad 211001",7518801803,"allahabadmfd@Kfintech.com","Open"]
[122,"MFS","Lucknow","Ambala","Haryana","Orange Zone","KFin Technologies Pvt. Ltd,6349, 2nd Floor,Nicholson Road,Adjacent Kos Hospitalambala Cant,Ambala 133001",7518801804,"mfsambala@Kfintech.com","Open"]
[123,"MFS","Lucknow","Azamgarh","Uttar Pradesh","Orange Zone","KFin Technologies Pvt. Ltd,House No. 290, Ground Floor,Civil lines, Near Sahara Office,-,Azamgarh 276001",7518801805,"mfsazamgarh@Kfintech.com","Open"]
[124,"MFS","Lucknow","Bareilly","Uttar Pradesh","Red Zone","KFin Technologies Pvt. Ltd,1ST FLOORREAR SIDEA -SQUARE BUILDING,54-CIVIL LINES,Ayub Khan Chauraha,Bareilly 243001",7518801806,"mfsbareilly@Kfintech.com","Open"]
[125,"MFS","Lucknow","Begusarai","Bihar","Orange Zone","KFin Technologies Pvt. Ltd,C/o Dr Hazari Prasad Sahu,Ward No 13, Behind Alka Cinema,Begusarai (Bihar),Begusarai 851117",7518801807,"mfsbegusarai@Kfintech.com","Close"]
[126,"MFS","Lucknow","Bhagalpur","Bihar","Orange Zone","KFin Technologies Pvt. Ltd,2Nd Floor,Chandralok ComplexGhantaghar,Radha Rani Sinha Road,Bhagalpur 812001",7518801808,"mfsbhagalpur@Kfintech.com","Open"]
[127,"MFS","Lucknow","Darbhanga","Bihar","Orange Zone","KFin Technologies Pvt. Ltd,Jaya Complex2Nd Floor,Above Furniture PlanetDonar,Chowk,Darbhanga 846003",7518801809,"mfsdarbhanga@Kfintech.com","Open"]
[128,"MFS","Lucknow","Dehradun","Uttaranchal","Orange Zone","KFin Technologies Pvt. Ltd,Kaulagarh Road,Near Sirmaur Margabove,Reliance Webworld,Dehradun 248001",7518801810,"dehradunmfd@Kfintech.com","Open"]
[129,"MFS","Lucknow","Deoria","Uttar pradesh","Red Zone","KFin Technologies Pvt. Ltd,K. K. Plaza,Above Apurwa Sweets,Civil Lines Road,Deoria 274001",7518801811,"mfsdeoria@Kfintech.com","Open"]
[130,"MFS","Lucknow","Faridabad","Haryana","Red Zone","KFin Technologies Pvt. Ltd,A-2B 3rd Floor,Neelam Bata Road Peer ki Mazar,Nehru Groundnit,Faridabad 121001",7518801812,"mfsfaridabad@Kfintech.com","Open"]
[131,"MFS","Lucknow","Ghaziabad","Uttar Pradesh","Red Zone","KFin Technologies Pvt. Ltd,FF - 31, Konark Building,Rajnagar,-,Ghaziabad 201001",7518801813,"mfsghaziabad@Kfintech.com","Open"]
[132,"MFS","Lucknow","Ghazipur","Uttar Pradesh","Orange Zone","KFin Technologies Pvt. Ltd,House No. 148/19,Mahua Bagh,-,Ghazipur 233001",7518801814,"mfsghazipur@Kfintech.com","Open"]
[133,"MFS","Lucknow","Gonda","Uttar Pradesh","Red Zone","KFin Technologies Pvt. Ltd,H No 782,Shiv Sadan,ITI Road,Near Raghukul Vidyapeeth,Civil lines,Gonda 271001",7518801815,"mfsgonda@Kfintech.com","Open"]
[134,"MFS","Lucknow","Gorakhpur","Uttar Pradesh","Red Zone","KFin Technologies Pvt. Ltd,Above V.I.P. House ajdacent,A.D. Girls College,Bank Road,Gorakpur 273001",7518801816,"mfsgorakhpur@Kfintech.com","Open"]
[135,"MFS","Lucknow","Gurgaon","Haryana","Red Zone","KFin Technologies Pvt. Ltd,No: 212A, 2nd Floor, Vipul Agora,M. G. Road,-,Gurgaon 122001",7518801817,"mfsgurgaon@Kfintech.com","Open"]
[136,"MFS","Lucknow","Gwalior","Madhya Pradesh","Green Zone","KFin Technologies Pvt. Ltd,City Centre,Near Axis Bank,-,Gwalior 474011",7518801818,"mfsgwalior@Kfintech.com","Open"]
[137,"MFS","Lucknow","Haldwani","Uttaranchal","Orange Zone","KFin Technologies Pvt. Ltd,Shoop No 5,KMVN Shoping Complex,-,Haldwani 263139",7518801819,"mfshaldwani@Kfintech.com","Open"]
[138,"MFS","Lucknow","Haridwar","Uttaranchal","Orange Zone","KFin Technologies Pvt. Ltd,Shop No. - 17,Bhatia Complex,Near Jamuna Palace,Haridwar 249410",7518801820,"mfsharidwar@Kfintech.com","Open"]
[139,"MFS","Lucknow","Hissar","Haryana","Orange Zone","KFin Technologies Pvt. Ltd,Shop No. 20, Ground Floor,R D City Centre,Railway Road,Hissar 125001",7518801821,"mfshissar@Kfintech.com","Open"]
[140,"MFS","Lucknow","Jaunpur","Uttar Pradesh","Red Zone","KFin Technologies Pvt. Ltd,R N Complex 1-1-9-G,R. N. Complex, Opposite Pathak Honda,Above Oriental Bank of Commerce,Jaunpur 222002",7518801822,"mfsjaunpur@Kfintech.com","Open"]
[141,"MFS","Lucknow","Jhansi","Uttar Pradesh","Orange Zone","KFin Technologies Pvt. Ltd,1st Floor, Puja Tower,Near 48 Chambers,ELITE Crossing,Jhansi 284001",7518801823,"mfsjhansi@Kfintech.com","Open"]
[142,"MFS","Lucknow","Kanpur","Uttar Pradesh","Red Zone","KFin Technologies Pvt. Ltd,15/46 B Ground Floor,Opp : Muir Mills,Civil Lines,Kanpur 208001",7518801824,"kanpurmfd@Kfintech.com","Open"]
[143,"MFS","Lucknow","Korba","Chatisgarh","Orange Zone","KFin Technologies Pvt. Ltd,Nidhi Biz Complex,Plot No 5, Near Patidar Bhawan,T. P. Nagar,Korba 495677",7518801826,"mfskorba@Kfintech.com","Open"]
[144,"MFS","Lucknow","Lucknow","Uttar Pradesh","Red Zone","KFin Technologies Pvt. Ltd,Ist Floor,A. A. Complex,5 Park Road Hazratganj Thaper House,Lucknow 226001",7518801830,"lucknowmfd@Kfintech.com","Open"]
[145,"MFS","Lucknow","Mandi","Uttar Pradesh","Orange Zone","KFin Technologies Pvt. Ltd,\nHouse No. 99/11, 3rd Floor,Opposite GSS Boy School,School Bazar,Mandi  175001",7518801833,"mfsmandi@Kfintech.com","Open"]
[146,"MFS","Lucknow","Mathura","Uttar Pradesh","Red Zone","KFin Technologies Pvt. Ltd,Shop No. 9, Ground Floor, Vihari Lal Plaza,Opposite Brijwasi Centrum,Near New Bus Stand,Mathura 281001",7518801834,"mfsmathura@Kfintech.com","Open"]
[147,"MFS","Lucknow","Meerut","Uttar Pradesh","Red Zone","KFin Technologies Pvt. Ltd,H No 5,Purva Eran, Opp Syndicate Bank,Hapur Road,Meerut 250002",7518801835,"mfsmeerut@Kfintech.com","Open"]
[148,"MFS","Lucknow","Mirzapur","Uttar Pradesh","Green Zone","KFin Technologies Pvt. Ltd,House No. 404,Ward No. 8,Dankeenganj, Mirzapur,Mirzapur 231001",7518801836,"mfsmirzapur@Kfintech.com","Open"]
[149,"MFS","Lucknow","Moradabad","Uttar Pradesh","Red Zone","KFin Technologies Pvt. Ltd,Chadha Complex,G. M. D. Road,Near Tadi Khana Chowk,Moradabad 244001",7518801837,"mfsmoradabad@Kfintech.com","Open"]
[150,"MFS","Lucknow","Morena","Madhya Pradesh","Green Zone","KFin Technologies Pvt. Ltd,House No. HIG 959,Near Court,Front of Dr. Lal Lab,Old Housing Board Colony,Morena 476001",7518801838,"mfsmorena@Kfintech.com","Open"]
[151,"MFS","Lucknow","Muzaffarpur","Bihar","Green Zone","KFin Technologies Pvt. Ltd,First Floor Saroj Complex ,Diwam Road,Near Kalyani Chowk,Muzaffarpur 842001",7518801839,"mfsmuzaffarpur@Kfintech.com","Open"]
[152,"MFS","Lucknow","Noida","Uttar Pradesh","Red Zone","KFin Technologies Pvt. Ltd,F-21,2nd Floor,Near Kalyan Jewelers,Sector-18,Noida 201301",7518801840,"mfsnoida@Kfintech.com","Open"]
[153,"MFS","Lucknow","Panipat","Haryana","Orange Zone","KFin Technologies Pvt. Ltd,Preet Tower, 3rd Floor,Near NK Tower,G.T. Road,Panipat 132103",7518801841,"mfspanipat@Kfintech.com","Open"]
[154,"MFS","Lucknow","Renukoot","Uttar Pradesh","Green Zone","KFin Technologies Pvt. Ltd,C/o Mallick Medical Store,Bangali Katra Main Road,Dist. Sonebhadra (U.P.),Renukoot 231217",7518801842,"mfsrenukoot@Kfintech.com","Open"]
[155,"MFS","Lucknow","Rewa","Madhya Pradesh","Orange Zone","KFin Technologies Pvt. Ltd,Shop No. 2,  Shree Sai Anmol Complex,Ground Floor,Opp Teerth Memorial Hospital,Rewa 486001",7518801843,"mfsrewa@Kfintech.com","Open"]
[156,"MFS","Lucknow","Rohtak","Haryana","Orange Zone","KFin Technologies Pvt. Ltd,Shop No 14, Ground Floor,Ashoka Plaza,Delhi Road ,Rohtak 124001",7518801844,"mfsrohtak@Kfintech.com","Open"]
[157,"MFS","Lucknow","Roorkee","Uttaranchal","Orange Zone","KFin Technologies Pvt. Ltd,Shree Ashadeep Complex 16,Civil Lines,Near Income Tax Office,Roorkee 247667",7518801845,"mfsroorkee@Kfintech.com","Open"]
[158,"MFS","Lucknow","Saharanpur","Uttar Pradesh","Red Zone","KFin Technologies Pvt. Ltd,18 Mission Market,Court Road,-,Saharanpur 247001",7518801846,"mfssaharanpur@Kfintech.com","Open"]
[159,"MFS","Lucknow","Satna","Madhya Pradesh","Orange Zone","KFin Technologies Pvt. Ltd,Jainam Market,Purana Power House Chauraha,Panni Lal Chowk,Satna 485001",7518801847,"mfssatna@Kfintech.com","Open"]
[160,"MFS","Lucknow","Shimla","Himachal Pradesh","Green Zone","KFin Technologies Pvt. Ltd,1st Floor,Hills View Complex,Near Tara Hall,Shimla 171001",7518801849,"mfsshimla@Kfintech.com","Open"]
[161,"MFS","Lucknow","Shivpuri","Madhya Pradesh","Green Zone","KFin Technologies Pvt. Ltd,A. B. Road,In Front of Sawarkar Park,Near Hotel Vanasthali,Shivpuri 473551",7518801850,"mfsshivpuri@Kfintech.com","Open"]
[162,"MFS","Lucknow","Sitapur","Uttar Pradesh","Red Zone","KFin Technologies Pvt. Ltd,12/12 Surya Complex,Station Road ,Uttar Pradesh,Sitapur 261001",7518801851,"mfssitapur@Kfintech.com","Open"]
[163,"MFS","Lucknow","Solan","Himachal Pradesh","Orange Zone","KFin Technologies Pvt. Ltd,Disha Complex, 1St Floor,Above Axis Bank,Rajgarh Road,Solan 173212",7518801852,"mfssolan@Kfintech.com","Open"]
[164,"MFS","Lucknow","Sonepat","Haryana","Red Zone","KFin Technologies Pvt. Ltd,2nd floor,DP Tower, Model Town,Near Subhash Chowk,Sonepat 131001",7518801853,"mfssonepat@Kfintech.com","Open"]
[165,"MFS","Lucknow","Sultanpur","Uttar Pradesh","Orange Zone","KFin Technologies Pvt. Ltd,1st Floor, Ramashanker Market,Civil Line,-,Sultanpur 228001",7518801854,"mfssultanpur@Kfintech.com","Open"]
[166,"MFS","Lucknow","Varanasi","Uttar Pradesh","Red Zone","KFin Technologies Pvt. Ltd,D-64/132, 2nd Floor ,KA, Mauza, Shivpurwa, Settlement Plot No 478 Pargana, Dehat Amanat, Mohalla Sigra,Varanashi 221010",7518801855,"varanasimfd@Kfintech.com","Open"]
[167,"MFS","Lucknow","Yamuna Nagar","Haryana","Orange Zone","KFin Technologies Pvt. Ltd,B-V, 185/A, 2nd Floor, Jagadri Road,,Near DAV Girls College, (UCO Bank Building) Pyara Chowk,-,Yamuna Nagar 135001",7518801857,"mfsyamunanagar@Kfintech.com","Open"]
[168,"MFS","Mumbai","Kolhapur","Maharashthra","Orange Zone","KFin Technologies Pvt. Ltd,605/1/4 E Ward Shahupuri 2Nd Lane,Laxmi Niwas,Near Sultane Chambers,Kolhapur 416001","0231 2653656 ","mfskolhapur@Kfintech.com","Open"]
[169,"MFS","Mumbai","Mumbai","Maharashthra","Containmment","KFin Technologies Pvt. Ltd,24/B Raja Bahadur Compound,Ambalal Doshi Marg,Behind Bse Bldg,Fort 400001","022-66235353","mumbaimfd@Kfintech.com","Open"]
[170,"MFS","Mumbai","Pune","Maharashthra","Red Zone","KFin Technologies Pvt. Ltd,Office # 207-210, second floor,Kamla Arcade, JM Road. Opposite Balgandharva,Shivaji Nagar,Pune 411005","020-66210449","punemfd@Kfintech.com","Open"]
[171,"Collection Center","Mumbai","Vashi","Maharashtra","Red Zone","KFin Technologies Pvt. Ltd,Vashi Plaza,Shop no. 324,C Wing, 1ST Floor,Sector 17,Vashi Mumbai,400705","022 27802684","Vashiext.mum@Kfintech.com ","Open"]
[172,"Collection Center","Mumbai","Vile Parle","Maharashtra","Containmment","KFin Technologies Pvt. Ltd,Shop No.1 Ground Floor,,Dipti Jyothi Co-operative Housing Society,,Near MTNL office P M Road,,Vile Parle East,400057","022-26100967","VileParleext.mum@Kfintech.com     ","Open"]
[173,"Collection Center","Mumbai","Borivali","Maharashtra","Red Zone","KFin Technologies Pvt. Ltd,Gomati SmutiGround Floor,Jambli Gully,Near Railway Station ,Borivali Mumbai,400 092","022- 28916319","Borivaliext.mum@Kfintech.com ","Open"]
[174,"Collection Center","Mumbai","Thane","Maharashtra","Containmment","KFin Technologies Pvt. Ltd,Room No. 302 3rd FloorGanga Prasad,Near RBL Bank Ltd,Ram Maruti Cross RoadNaupada  Thane West  ,Mumbai,400602","022 25303013","Thaneext.mum@Kfintech.com","Open"]
[175,"MFS","New Delhi","Ajmer","Rajasthan","Red Zone","KFin Technologies Pvt. Ltd,302 3rd Floor,Ajmer Auto Building,Opposite City Power House,Jaipur Road; Ajmer 305001","0145-5120725","mfsajmer@Kfintech.com","Open"]
[176,"MFS","New Delhi","Alwar","Rajasthan","Orange Zone","KFin Technologies Pvt. Ltd,Office Number 137, First Floor,Jai Complex,Road No-2,Alwar 301001","0144-4901131","mfsalwar@Kfintech.com","Open"]
[177,"MFS","New Delhi","Amritsar","Punjab","Red Zone","KFin Technologies Pvt. Ltd,SCO 5 ,2nd Floor, District Shopping Complex,Ranjit Avenue,Amritsar 143001","0183-5053802","mfsamritsar@Kfintech.com","Open"]
[178,"MFS","New Delhi","Bhatinda","Punjab","Green Zone","KFin Technologies Pvt. Ltd,MCB -Z-3-01043, 2 floor, GONIANA ROAD,OPPORITE NIPPON INDIA MF GT ROAD,NEAR HANUMAN CHOWK,Bhatinda 151001","0164- 5006725","mfsbhatinda@Kfintech.com","Open"]
[179,"MFS","New Delhi","Bhilwara","Rajasthan","Orange Zone","KFin Technologies Pvt. Ltd,Office No. 14 B, Prem Bhawan,Pur Road, Gandhi Nagar,Near CanaraBank,Bhilwara 311001","01482-246362 / 246364","mfsbhilwara@Kfintech.com","Open"]
[180,"MFS","New Delhi","Bikaner","Rajasthan","Orange Zone","KFin Technologies Pvt. Ltd,70-71 2Nd Floor | Dr.Chahar Building ,Panchsati Circle,Sadul Ganj ,Bikaner 334003","0151-2200014","mfsbikaner@Kfintech.com","Open"]
[181,"MFS","New Delhi","Chandigarh","Union Territory","Red Zone","KFin Technologies Pvt. Ltd,First floor, SCO 2469-70,Sec. 22-C,-,Chandigarh 160022",1725101342,"chandigarhmfd@Kfintech.com","Open"]
[182,"MFS","New Delhi","Ferozpur","Punjab","Orange Zone","KFin Technologies Pvt. Ltd,The Mall Road Chawla Bulding Ist Floor,Opp. Centrail Jail,Near Hanuman Mandir,Ferozepur 152002","01632-241814","mfsferozpur@Kfintech.com","Open"]
[183,"MFS","New Delhi","Hoshiarpur","Punjab","Orange Zone","KFin Technologies Pvt. Ltd,Unit # SF-6,The Mall Complex,2nd Floor , Opposite Kapila Hospital,Sutheri Road,Hoshiarpur 146001","01882-500143","mfshoshiarpur@Kfintech.com","Open"]
[184,"MFS","New Delhi","Jaipur","Rajasthan","Red Zone","KFin Technologies Pvt. Ltd,Office no 101, 1st Floor,Okay Plus Tower,Next to Kalyan Jewellers,Government Hostel Circle, Ajmer Road,Jaipur 302001","01414167715/17","jaipurmfd@Kfintech.com","Open"]
[185,"MFS","New Delhi","Jalandhar","Punjab","Red Zone","KFin Technologies Pvt. Ltd,Office No 7, 3rd Floor, City Square building,E-H197 Civil Line,Next to Kalyan Jewellers,Jalandhar 144001","0181-5094410","mfsjalandhar@Kfintech.com","Open"]
[186,"MFS","New Delhi","Jammu","Jammu & Kashmir","Orange Zone","KFin Technologies Pvt. Ltd,Gupta’s Tower, CB-12, 2nd Floor,Government Hostel Circle,,Rail Head complex,Jammu 180012","0191-2458820 / 2458818","mfsjammu@Kfintech.com","Open"]
[187,"MFS","New Delhi","Jodhpur","Rajasthan","Red Zone","KFin Technologies Pvt. Ltd,Shop No. 6, GANG TOWER, G Floor,OPPOSITE ARORA MOTER SERVICE CENTRE,NEAR BOMBAY MOTER CIRCLE,Jodhpur 342003",7737014590,"mfsjodhpur@Kfintech.com","Open"]
[188,"MFS","New Delhi","Karnal","Haryana","Orange Zone","KFin Technologies Pvt. Ltd,18/369Char Chaman,Kunjpura Road,Behind Miglani Hospital,Karnal 132001","0184-2252524","mfskarnal@Kfintech.com","Open"]
[189,"MFS","New Delhi","Kota","Rajasthan","Red Zone","KFin Technologies Pvt. Ltd,D-8, SHRI RAM COMPLEX,OPPOSITE MULTI PURPOSE SCHOOL,GUMANPUR,Kota 324007","0744-5100964","mfskota@Kfintech.com","Open"]
[190,"MFS","New Delhi","Ludhiana","Punjab","Red Zone","KFin Technologies Pvt. Ltd,SCO 122, Second floor,Above Hdfc Mutual fun,,Feroze Gandhi Market,Ludhiana 141001","0161-4670278","mfsludhiana@Kfintech.com","Open"]
[191,"MFS","New Delhi","Moga","Punjab","Orange Zone","KFin Technologies Pvt. Ltd,1St FloorDutt Road,Mandir Wali Gali,Civil Lines Barat Ghar ,Moga 142001","01636 - 230792","mfsmoga@Kfintech.com","Open"]
[192,"MFS","New Delhi","New Delhi","New Delhi ","Red Zone","KFin Technologies Pvt. Ltd,305 New Delhi House ,27 Barakhamba Road ,-,New Delhi  110001","011- 43681700 ","delhimfd@Kfintech.com","Open"]
[193,"MFS","New Delhi","Pathankot","Punjab","Orange Zone","KFin Technologies Pvt. Ltd,2nd Floor Sahni Arcade Complex,Adj.Indra colony Gate Railway Road,Pathankot,Pathankot 145001","0186-5080188","mfspathankot@Kfintech.com","Open"]
[194,"MFS","New Delhi","Patiala","Punjab","Red Zone","KFin Technologies Pvt. Ltd,B- 17/423,Lower Mall Patiala,Opp Modi  College,Patiala 147001","0175-5004349","mfspatiala@Kfintech.com ","Open"]
[195,"MFS","New Delhi","Sikar","Rajasthan","Orange Zone","KFin Technologies Pvt. Ltd,First FloorSuper Tower ,Behind Ram Mandir Near Taparya Bagichi ,-,Sikar  332001","01572-250398 ","mfssikar@Kfintech.com","Open"]
[196,"MFS","New Delhi","Sri Ganganagar","Rajasthan","Green Zone","KFin Technologies Pvt. Ltd,Address Shop No. 5, Opposite Bihani Petrol Pump,NH - 15,near Baba Ramdev Mandir,Sri Ganganagar 335001","0154-2470177","mfssriganganagar@Kfintech.com","Open"]
[197,"MFS","New Delhi","Udaipur","Rajasthan","Orange Zone","KFin Technologies Pvt. Ltd,Shop No. 202, 2nd Floor business centre,1C Madhuvan,Opp G P O  Chetak Circle ,Udaipur 313001","0294 2429370","mfsudaipur@Kfintech.com","Open"]